{"text_format":"2","workbook":"xlsx","n_sheets":30,"sheets":["Hidden","Разлика","НАСЛОВНА ЛОТ - 2","ЗАБЕЛЕШКИ","13-33","14-34","28-51","29-52","30-53","31-54","32-56","33-60","34-64","35-66","36-67","37-68","38-69","39-76","40-77","41-78","42-79","43-80","44-82","45-84","46-85","47-87","48-88","49-89","Part 2 - 48","РЕКАПИТУЛАР ЛОТ-2"],"not_rendered":{"charts":0,"images":0,"macros":0,"external_links":0,"defined_names":13,"comments":0,"pivot_tables":0},"unopened":[],"bounds":{"document_bytes":16777216,"sheet_cells":100000,"run_cost":"one","rows_first":2000,"rows_last":500,"rows_between":2000,"halvings":0,"cell_chars":16384,"cell_head_chars":4096},"cells_cut":0,"cells_raw":0,"read":"whole","date_system":"1900"}

{"sheet":"Hidden","index":0,"n_rows":11,"n_cols":3,"rows_kept":11,"cut":false,"hidden":true,"merged":[]}
[]
["UNDP",{"$f":"50.2","v":50.2},"Подготвителни"]
["Домаќинство",null,"Тесарски"]
["Град Скопје",null,"Изолатерски"]
["Не се изведува",null,"Покривачки"]
[null,null,"Лимарски"]
[null,null,"Фасада"]
[null,null,"Столарија"]
[null,null,"Греење"]
[null,null,"Останати"]
[null,null,"По енергетска Контрола"]

{"sheet":"Разлика","index":1,"n_rows":326,"n_cols":1,"rows_kept":326,"cut":false,"hidden":true,"merged":[]}
["Пријава Број"]
[17]
[17]
[17]
[17]
[17]
[17]
[17]
[17]
[17]
[17]
[17]
[17]
[19]
[19]
[19]
[19]
[19]
[19]
[19]
[19]
[19]
[19]
[19]
[19]
[21]
[21]
[21]
[21]
[21]
[21]
[21]
[21]
[21]
[21]
[21]
[22]
[22]
[22]
[22]
[22]
[22]
[22]
[22]
[22]
[22]
[22]
[22]
[31]
[31]
[31]
[31]
[31]
[31]
[31]
[31]
[31]
[31]
[31]
[31]
[31]
[31]
[32]
[32]
[32]
[32]
[32]
[32]
[32]
[32]
[32]
[32]
[39]
[39]
[39]
[39]
[39]
[39]
[39]
[39]
[39]
[39]
[39]
[41]
[41]
[41]
[41]
[41]
[41]
[41]
[41]
[41]
[41]
[41]
[43]
[43]
[43]
[43]
[43]
[43]
[43]
[43]
[43]
[43]
[43]
[49]
[49]
[49]
[49]
[49]
[49]
[49]
[49]
[49]
[49]
[49]
[49]
[52]
[52]
[52]
[52]
[52]
[52]
[52]
[52]
[52]
[52]
[52]
[52]
[53]
[53]
[53]
[53]
[53]
[53]
[53]
[53]
[53]
[53]
[53]
[53]
[56]
[56]
[56]
[56]
[56]
[56]
[56]
[56]
[56]
[56]
[56]
[56]
[69]
[69]
[69]
[69]
[69]
[69]
[69]
[69]
[69]
[69]
[69]
[82]
[82]
[82]
[82]
[82]
[82]
[82]
[82]
[82]
[82]
[82]
[82]
[99]
[99]
[99]
[99]
[99]
[99]
[99]
[99]
[99]
[99]
[99]
[99]
[103]
[103]
[103]
[103]
[103]
[103]
[103]
[103]
[103]
[103]
[103]
[108]
[108]
[108]
[108]
[108]
[108]
[108]
[108]
[108]
[108]
[108]
[108]
[110]
[110]
[110]
[110]
[110]
[110]
[110]
[110]
[110]
[110]
[110]
[110]
[115]
[115]
[115]
[115]
[115]
[115]
[115]
[115]
[115]
[115]
[115]
[115]
[131]
[131]
[131]
[131]
[131]
[131]
[131]
[131]
[131]
[131]
[131]
[131]
[132]
[132]
[132]
[132]
[132]
[132]
[132]
[132]
[132]
[132]
[132]
[132]
[134]
[134]
[134]
[134]
[134]
[134]
[134]
[134]
[134]
[134]
[134]
[134]
[138]
[138]
[138]
[138]
[138]
[138]
[138]
[138]
[138]
[138]
[138]
[145]
[145]
[145]
[145]
[145]
[145]
[145]
[145]
[145]
[145]
[145]
[148]
[148]
[148]
[148]
[148]
[148]
[148]
[148]
[148]
[148]
[148]
[159]
[159]
[159]
[159]
[159]
[159]
[159]
[159]
[159]
[159]
[159]
[159]
[160]
[160]
[160]
[160]
[160]
[160]
[160]
[160]
[160]
[160]

{"sheet":"НАСЛОВНА ЛОТ - 2","index":2,"n_rows":42,"n_cols":2,"rows_kept":42,"cut":false,"hidden":false,"merged":[[16,1,19,1]]}
{"$rows_empty":13}
[null,"ЛОТ  - 2"]
[]
[null," \nПРЕДМЕР - ПРЕСМЕТКА/ BILL OF QUANTITIES "]
[null,"Завршни работи на надворешни прозорци и врати за инвестиционо тековно одржување  на индивидуални станбени објекти со имплементација на мерки за енергетска ефикасност - Населба Лисиче"]
{"$rows_empty":23}
[null,"рев.2"]
[null,"28/10/2021"]

{"sheet":"ЗАБЕЛЕШКИ","index":3,"n_rows":7,"n_cols":2,"rows_kept":7,"cut":false,"hidden":false,"merged":[[6,1,6,10],[0,1,0,6],[1,1,1,10],[2,1,2,10],[3,1,3,10],[4,1,4,10],[5,1,5,10]]}
[null,"Генерални забелешки :"]
[1,"Понудувачот внесува само единечни цени означени со жолто. Понудувачот е должен да даде понуда за сите позиции наведени во предмерите кои се означени со жолто. "]
[2,"Генерално за сите позиции во овој предмер важи за сите завршни работи за инвестиционо тековно одржување  на индивидуални станбени објекти со имплементација на мерки за енергетска ефикасност во Населба Лисиче со потребната механизација, алат и работна рака и сето тоа треба да се пресмета во единечната цена на позицијата."]
[3,"Понудувачот има обврска пред понудување на цена за  подготвителни работи на градилиште да ја посети локацијата и согласно фактичката состојба да ја формира цената. Понудените системи и производи треба да бидат поткрепени со атести и сертификати. (Вградувањето на несоодветен материјал на објектот е основ за негативен извештај од надзорот). Изведувачот има обврска пред понудување на цена за изведба на завршните работи да ја посети локацијата и согласно фактичката состојба да ја формира цената. Доклоку има прашања да се достават до УНДП за време на тендерската постапка. "]
[4,"Понудувачот е должен да ја проучи тендерската документација, описите и предмерот, да ги лоцира позициите за завршни работи и соодветно на тоа да ја формулира цената. Во случај некои позиции не му се  јасни како видови и квалитети на материјали или технологија на вградување, задолжително писмено да се обрати до УНДП за појаснување на истите. Доколку во текот на тендерската постапка, понудувачот писмено не се обрати со прашања до УНДП, се подразбира дека нема нејасни позиции, односно дека сите позиции се доволно јасно опишани, не смее да се признае дополнителна позиција за комплетирање на истата.  Понудувачот има предвид дека понудата ја дава согласно предмерот и да вкалкулира растур, одредени отстапувања од предмерот, и согласно истата да даде понуда (Растурот не се признава како дополнителна количина). Сите позиции се доволно јасно опишани и не се признава дополнителна позиција за комплетираање на позиција. Сите позиции да се понудат комплетно: со набавка, превоз, вградување, носење и одлагање во депонија до 20км. "]
[5,"Изведувачот на градежни работи е одговорен за заштита при работа и заштита на објектот за време на завршните работи од страна на Изведувачот."]
[6,"За соодветноста на материјалите предвидени според спецификациите на целокупната опрема, материјал и работна рака, составен дел на проектот, Изведувачот доставува мостри, каталози и сертификати до Инвеститорот, Надзорниот орган и по потреба Проектантот. Мострите од сите елементи, како и сертификатите и каталозите, остануваат како потврда за соодветноста на проектната документација. Изведувачот има обврска за сите позиции да земе мерки на лице место и за сите елементи од позициите да си изработи работилнички детали и работни цртежи кои ги доставува на одобрување до Надзорот и по потреба проектантот.          "]

{"sheet":"13-33","index":4,"n_rows":77,"n_cols":6,"rows_kept":77,"cut":false,"hidden":false,"merged":[[20,0,21,0],[32,0,33,0],[34,0,35,0],[36,0,37,0],[38,0,39,0],[10,0,11,0],[12,0,13,0],[14,0,15,0],[16,0,17,0],[18,0,19,0],[0,1,0,4],[1,1,1,5],[5,2,5,5],[6,0,7,0],[8,0,9,0],[50,0,51,0],[73,1,73,2],[40,0,41,0],[42,0,43,0],[44,0,45,0],[46,0,47,0],[48,0,49,0]]}
[null,"ПРЕДМЕР - ПРЕСМЕТКА"]
[null,"Градежни и градежно занатски работи за инвестиционо тековно одржување со имплементација за мерки за енергетска ефикасностна  индивидуален станбен објект на ул. Митре Влаот бр. 25б"]
["Ред. бр.","Опис на работа","Мера","Количина","Единечна цена","Вкупна цена"]
[1,2,3,4,5,6]
[1,"ПОДГОТВИТЕЛНИ РАБОТИ"]
[1.1000000000000001,"Внимателна демонтажа на дрвен прозор, застаклен со единечно стакло, комлет со окапница, потпрозорска даска, заедно со пренос и складирање на материјалот надвор од објектот или на локација предвидена од Надзорниот орган."]
["П1","Еднокрилен прозор"]
[null,"60/70","парче",1,null,{"$f":"D8*E8","v":0}]
["П2","Еднокрилен прозор"]
[null,"90/115","парче",1,null,{"$f":"D10*E10","v":0}]
["П3","Еднокрилен прозор"]
[null,"120/140","парче",1,null,{"$f":"D12*E12","v":0}]
["П4","Еднокрилен прозор"]
[null,"160/145","парче",1,null,{"$f":"D14*E14","v":0}]
["П5","Двокрилен прозор"]
[null,"120/145+75/230","парче",2,null,{"$f":"D16*E16","v":0}]
["П6","Еднокрилен прозор со еднокрилна балконска врата"]
[null,"115/140+70/220","парче",1,null,{"$f":"D18*E18","v":0}]
["П7","Еднокрилен прозор со еднокрилна балконска врата"]
[null,"120/140+70/220","парче",3,null,{"$f":"D20*E20","v":0}]
["П8","Двокрилен прозор со еднокрилна балконска врата"]
[null,"240/140+70/220","парче",1,null,{"$f":"D22*E22","v":0}]
[1.2,"Внимателна демонтажа на влезна врата комплет со каса и праг заедно со пренос и складирање на материјалот надвор од објектот или на локација предвидена од Надзорниот орган."]
["В1","Еднокрилна влезна врата со надсветло"]
[null,"105/220","парче",1,null,{"$f":"D25*E25","v":0}]
["В2","Двокрилна влезна врата "]
[null,"140(90+50)/205","парче",1,null,{"$f":"D27*E27","v":0}]
[1.3,"Внимателна демонтажа на ПВЦ ролетна со надворешна кутија заедно со пренос и складирање на материјалот надвор од објектот или на локација предвидена од Надзорниот орган. (за повторна монтажа)","парче",9,null,{"$f":"D28*E28","v":0}]
[null,"Вкупно ПОДГОТВИТЕЛНИ РАБОТИ",null,null,null,{"$f":"SUM(F6:F28)","v":0}]
[]
[2," СТОЛАРСКИ РАБОТИ"]
[2.1,"Земање на мерки на лице место, изработка, транспорт и монтажа на фасадни ПВЦ прозори и врати, во бела боја RAL 9010 (Pure white), 5 коморни со средишен дихдунг, топлинска изолација за целиот прозорец  U≤1.8 W/m²K, надворешен слој од високо квалитетен премаз, звучна изолација  без челично армирање до Rwp=35 dB, застаклување сo термопан стакло 4+12+4,  заштита од провалување до класа на отпор 3, до класа на отпор 2 без челик, пропустливост на воздух 4 (EN 12207), заштита од поројни дождови 9А (ЕН 12208). Вратите да се со исполна од ПВЦ панел со д=2см. Производител и тип по избор на Инвеститорот \n(ѕидарска мерка)."]
["П1","Еднокрилен прозор"]
[null,"60/80","парче",1,null,{"$f":"D34*E34","v":0}]
["П2","Еднокрилен прозор"]
[null,"70/85","парче",1,null,{"$f":"D36*E36","v":0}]
["П3","Еднокрилен прозор"]
[null,"100/90","парче",1,null,{"$f":"D38*E38","v":0}]
["П4","Еднокрилен прозор"]
[null,"120/115","парче",1,null,{"$f":"D40*E40","v":0}]
["П5","Двокрилен прозор"]
[null,"200/135","парче",2,null,{"$f":"D42*E42","v":0}]
["П6","Еднокрилен прозор со еднокрилна балконска врата"]
[null,"115/140+70/220","парче",1,null,{"$f":"D44*E44","v":0}]
["П7","Еднокрилен прозор со еднокрилна балконска врата"]
[null,"120/140+70/220","парче",3,null,{"$f":"D46*E46","v":0}]
["П8","Двокрилен прозор со еднокрилна балконска врата"]
[null,"240/140+70/220","парче",1,null,{"$f":"D48*E48","v":0}]
["В1","Еднокрилна влезна врата со фиксно надсветло в=20см, со квака и патент брава"]
[null,"105/220","парче",1,null,{"$f":"D50*E50","v":0}]
["В2","Двокрилна влезна врата, со квака и патент брава (95/45)"]
[null,"140/205","парче",1,null,{"$f":"D52*E52","v":0}]
[null,"Вкупно СТОЛАРСКИ РАБОТИ: ",null,null,null,{"$f":"SUM(F33:F50)","v":0}]
[]
[3,"ФАСАДЕРСКИ  РАБОТИ"]
[3.1,"Изработка на шпалетна со декоративен минерален фасаден малтер и фасадна боја","m`",{"$f":"SUM(B57)","v":82.05},0,{"$f":"SUM(D56*E56)","v":0}]
[null,{"$f":"2*(0.6+0.8)+2*(0.7+0.85)+2*(1+0.9)+2*(1.2+1.15)+4*(2+1.35)+2*(1.85+2.2)+6*(1.9+2.2)+2*(3.1+2.2)+(2*2.2+1.05)+(2*2.05+1.4)","v":82.05}]
[null,"Вкупно ФАСАДЕРСКИ РАБОТИ: ",null,null,null,{"$f":"SUM(F56:F57)","v":0}]
[]
[4,"РАЗНИ РАБОТИ"]
[4.0999999999999996,"Изработка и местење на опшивка на прозорски окапник од поцинкуван пластифициран апкантован челичен лим д=0.55мм, во светло сива боја според RAL 9002 (Grey white),  РШ 30, поставени на метален флах за нивелирање на пад. ","m'",{"$f":"SUM(B62)","v":14.65},0,{"$f":"D61*E61","v":0}]
[null,{"$f":"0.6+0.7+1+1.2+2*2+1.15+3*1.2+2.4","v":14.65}]
[4.2,"Изработка и монтажа на внатрешен прозорски банак од ПВЦ, ш-15 см, во бела боја според RAL 9010 (pure white)","m'",{"$f":"SUM(B64)","v":14.65},0,0]
[null,{"$f":"0.6+0.7+1+1.2+2*2+1.15+3*1.2+2.4","v":14.65}]
[4.3,"Завршно глетување и молерисување на внатрешна шпалетна околу новопоставени  прозори и врати, заедно со метална аголна лајсна.","m'",{"$f":"SUM(B66)","v":82.05},0,0]
[null,{"$f":"2*(0.6+0.8)+2*(0.7+0.85)+2*(1+0.9)+2*(1.2+1.15)+4*(2+1.35)+2*(1.85+2.2)+6*(1.9+2.2)+2*(3.1+2.2)+(2*2.2+1.05)+(2*2.05+1.4)","v":82.05}]
[4.4000000000000004,"Изработка и монтажа на праг кај влезна врата, од мермер со д-3см, со обработени ивици, полиран, во бела боја, дим.105 и 140 см. Земање на мерка на лице место.","парче",2,0,{"$f":"D67*E67","v":0}]
[null,"Вкупно РАЗНИ РАБОТИ: ",null,null,null,{"$f":"SUM(F61:F67)","v":0}]
[]
[null,"Р Е К А П И Т У Л А Р"]
[]
[1,"ПОДГОТВИТЕЛНИ РАБОТИ",null,null,null,{"$f":"SUM(F29)","v":0}]
[2,"СТОЛАРСКИ РАБОТИ",null,null,null,{"$f":"SUM(F53)","v":0}]
[3,"ФАСАДЕРСКИ РАБОТИ",null,null,null,{"$f":"SUM(F58)","v":0}]
[4,"РАЗНИ РАБОТИ",null,null,null,{"$f":"SUM(F68)","v":0}]
[]
[null,"СЕ ВКУПНО",null,null,null,{"$f":"SUM(F72:F75)","v":0}]

{"sheet":"14-34","index":5,"n_rows":93,"n_cols":6,"rows_kept":93,"cut":false,"hidden":false,"merged":[[0,1,0,4],[1,1,1,5],[5,2,5,5],[16,0,17,0],[18,0,19,0],[6,0,7,0],[8,0,9,0],[10,0,11,0],[12,0,13,0],[14,0,15,0],[31,0,32,0],[33,0,34,0],[40,0,41,0],[42,0,43,0],[20,0,21,0],[22,0,23,0],[24,0,25,0],[26,0,27,0],[28,0,29,0],[44,0,45,0],[46,0,47,0],[48,0,49,0],[50,0,51,0],[52,0,53,0],[64,0,65,0],[66,0,67,0],[89,1,89,2],[54,0,55,0],[56,0,57,0],[58,0,59,0],[60,0,61,0],[62,0,63,0]]}
[null,"ПРЕДМЕР - ПРЕСМЕТКА"]
[null,"Градежни и градежно занатски работи за инвестиционо тековно одржување со имплементација за мерки за енергетска ефикасностна  индивидуален станбен објект на ул. Богомилски Поход 2 бр. 8"]
["Ред. бр.","Опис на работа","Мера","Количина","Единечна цена","Вкупна цена"]
[1,2,3,4,5,6]
[1,"ПОДГОТВИТЕЛНИ РАБОТИ"]
[1.1000000000000001,"Внимателна демонтажа на дрвен прозор, застаклен со единечно стакло, комлет со окапница, потпрозорска даска, заедно со пренос и складирање на материјалот надвор од објектот или на локација предвидена од Надзорниот орган."]
["П1","Еднокрилен прозор"]
[null,"50/50","парче",1,null,{"$f":"D8*E8","v":0}]
["П2","Еднокрилен прозор"]
[null,"60/65","парче",1,null,{"$f":"D10*E10","v":0}]
["П3","Еднокрилен прозор"]
[null,"60/80","парче",1,null,{"$f":"D12*E12","v":0}]
["П4","Еднокрилен прозор"]
[null,"80/85","парче",1,null,{"$f":"D14*E14","v":0}]
["П5","Двокрилен прозор"]
[null,"150/135","парче",1,null,{"$f":"D16*E16","v":0}]
["П6","Трокрилен прозор"]
[null,"155/110","парче",1,null,{"$f":"D18*E18","v":0}]
["П7","Трокрилен прозор"]
[null,"155/125","парче",1,null,{"$f":"D20*E20","v":0}]
["П8","Двокрилен прозор"]
[null,"175/140","парче",1,null,{"$f":"D22*E22","v":0}]
["П9","Двокрилен прозор"]
[null,"200/140","парче",2,null,{"$f":"D24*E24","v":0}]
["П10","Трокрилен прозор"]
[null,"210/140","парче",1,null,{"$f":"D26*E26","v":0}]
["П11","Еднокрилна балконска врата"]
[null,"75/215","парче",1,null,{"$f":"D28*E28","v":0}]
["П12","Еднокрилен фиксен прозор над врата В2"]
[null,"120/42","парче",1,null,{"$f":"D30*E30","v":0}]
[1.2,"Внимателна демонтажа на влезна врата комплет со каса и праг заедно со пренос и складирање на материјалот надвор од објектот или на локација предвидена од Надзорниот орган."]
["В1","Еднокрилна влезна врата"]
[null,"85/207","парче",1,null,{"$f":"D33*E33","v":0}]
["В2","Еднокрилна влезна врата"]
[null,"110/205","парче",1,null,{"$f":"D35*E35","v":0}]
[1.3,"Внимателна демонтажа на ПВЦ ролетна со надворешна кутија заедно со пренос и складирање на материјалот надвор од објектот или на локација предвидена од Надзорниот орган. (за повторна монтажа)","парче",3,null,{"$f":"D36*E36","v":0}]
[null,"Вкупно ПОДГОТВИТЕЛНИ РАБОТИ",null,null,null,{"$f":"SUM(F6:F36)","v":0}]
[]
[2," СТОЛАРСКИ РАБОТИ"]
[2.1,"Земање на мерки на лице место, изработка, транспорт и монтажа на фасадни ПВЦ прозори и врати, во бела боја RAL 9010 (Pure white), 5 коморни со средишен дихдунг, топлинска изолација за целиот прозорец  U≤1.8 W/m²K, надворешен слој од високо квалитетен премаз, звучна изолација  без челично армирање до Rwp=35 dB, застаклување сo термопан стакло 4+12+4,  заштита од провалување до класа на отпор 3, до класа на отпор 2 без челик, пропустливост на воздух 4 (EN 12207), заштита од поројни дождови 9А (ЕН 12208). Вратите да се со исполна од ПВЦ панел со д=2см. Производител и тип по избор на Инвеститорот \n(ѕидарска мерка)."]
["П1","Еднокрилен прозор"]
[null,"50/50","парче",1,null,{"$f":"D42*E42","v":0}]
["П2","Еднокрилен прозор"]
[null,"60/65","парче",1,null,{"$f":"D44*E44","v":0}]
["П3","Еднокрилен прозор"]
[null,"60/80","парче",1,null,{"$f":"D46*E46","v":0}]
["П4","Еднокрилен прозор"]
[null,"80/85","парче",1,null,{"$f":"D48*E48","v":0}]
["П5","Двокрилен прозор"]
[null,"150/135","парче",1,null,{"$f":"D50*E50","v":0}]
["П6","Двокрилен прозор"]
[null,"155/110","парче",1,null,{"$f":"D52*E52","v":0}]
["П7","Двокрилен прозор"]
[null,"155/125","парче",1,null,{"$f":"D54*E54","v":0}]
["П8","Двокрилен прозор"]
[null,"175/140","парче",1,null,{"$f":"D56*E56","v":0}]
["П9","Двокрилен прозор"]
[null,"200/140","парче",2,null,{"$f":"D58*E58","v":0}]
["П10","Двокрилен прозор"]
[null,"210/140","парче",1,null,{"$f":"D60*E60","v":0}]
["П11","Еднокрилна балконска врата"]
[null,"75/215","парче",1,null,{"$f":"D62*E62","v":0}]
["П12","Еднокрилен фиксен прозор над врата В2"]
[null,"120/42","парче",1,null,{"$f":"D64*E64","v":0}]
["В1","Еднокрилна влезна врата, со квака и патент брава"]
[null,"85/207","парче",1,null,{"$f":"D66*E66","v":0}]
["В2","Еднокрилна влезна врата, со квака и патент брава"]
[null,"110/205","парче",1,null,{"$f":"D68*E68","v":0}]
[null,"Вкупно СТОЛАРСКИ РАБОТИ: ",null,null,null,{"$f":"SUM(F40:F68)","v":0}]
[]
[3,"ФАСАДЕРСКИ  РАБОТИ"]
[3.1,"Изработка на шпалетна со декоративен минерален фасаден малтер и фасадна боја","m`",{"$f":"SUM(B73)","v":73.33},0,{"$f":"SUM(D72*E72)","v":0}]
[null,{"$f":"2*(0.5+0.5)+2*(0.6+0.65)+2*(0.6+0.8)+2*(0.8+0.85)+2*(1.5+1.35)+2*(1.55+1.1)+2*(1.55+1.25)+2*(1.75+1.4)+4*(2+1.4)+2*(2.1+1.4)+2*(0.75+2.15)+2*(1.2+0.42)+(2*2.07+0.85)+(2*2.05+1.1)","v":73.33}]
[null,"Вкупно ФАСАДЕРСКИ РАБОТИ: ",null,null,null,{"$f":"SUM(F72:F73)","v":0}]
[]
[4,"РАЗНИ РАБОТИ"]
[4.0999999999999996,"Изработка и местење на опшивка на прозорски окапник од поцинкуван пластифициран апкантован челичен лим д=0.55мм, во светло сива боја според RAL 9002 (Grey white),  РШ 30, поставени на метален флах за нивелирање на пад. ","m'",{"$f":"SUM(B78)","v":14.149999999999999},0,{"$f":"D77*E77","v":0}]
[null,{"$f":"0.5+2*0.6+0.8+1.5+2*1.55+1.75+2+2.1+1.2","v":14.149999999999999}]
[4.2,"Изработка и монтажа на внатрешен прозорски банак од ПВЦ, ш-15 см, во бела боја според RAL 9010 (pure white)","m'",{"$f":"SUM(B80)","v":14.149999999999999},0,0]
[null,{"$f":"0.5+2*0.6+0.8+1.5+2*1.55+1.75+2+2.1+1.2","v":14.149999999999999}]
[4.3,"Завршно глетување и молерисување на внатрешна шпалетна околу новопоставени  прозори и врати, заедно со метална аголна лајсна.","m'",{"$f":"SUM(B82)","v":73.33},0,0]
[null,{"$f":"2*(0.5+0.5)+2*(0.6+0.65)+2*(0.6+0.8)+2*(0.8+0.85)+2*(1.5+1.35)+2*(1.55+1.1)+2*(1.55+1.25)+2*(1.75+1.4)+4*(2+1.4)+2*(2.1+1.4)+2*(0.75+2.15)+2*(1.2+0.42)+(2*2.07+0.85)+(2*2.05+1.1)","v":73.33}]
[4.4000000000000004,"Изработка и монтажа на праг кај влезна врата, од мермер со д-3см, со обработени ивици, полиран, во бела боја, дим. 85 и 110 см. Земање на мерка на лице место.","парче",2,0,{"$f":"D83*E83","v":0}]
[null,"Вкупно РАЗНИ РАБОТИ: ",null,null,null,{"$f":"SUM(F77:F83)","v":0}]
[]
[null,"Р Е К А П И Т У Л А Р"]
[]
[1,"ПОДГОТВИТЕЛНИ РАБОТИ",null,null,null,{"$f":"SUM(F37)","v":0}]
[2,"СТОЛАРСКИ РАБОТИ",null,null,null,{"$f":"SUM(F69)","v":0}]
[3,"ФАСАДЕРСКИ РАБОТИ",null,null,null,{"$f":"SUM(F74)","v":0}]
[4,"РАЗНИ РАБОТИ",null,null,null,{"$f":"SUM(F84)","v":0}]
[]
[null,"СЕ ВКУПНО",null,null,null,{"$f":"SUM(F88:F91)","v":0}]

{"sheet":"28-51","index":6,"n_rows":49,"n_cols":6,"rows_kept":49,"cut":false,"hidden":false,"merged":[[45,1,45,2],[0,1,0,4],[1,1,1,5],[5,2,5,5],[6,0,7,0],[8,0,9,0],[18,0,19,0],[20,0,21,0],[22,0,23,0],[11,0,12,0]]}
[null,"ПРЕДМЕР - ПРЕСМЕТКА"]
[null,"Градежни и градежно занатски работи за инвестиционо тековно одржување со имплементација за мерки за енергетска ефикасностна  индивидуален станбен објект на ул. Гаврил Константиновиќ бр. 71"]
["Ред. бр.","Опис на работа","Мера","Количина","Единечна цена","Вкупна цена"]
[1,2,3,4,5,6]
[1,"ПОДГОТВИТЕЛНИ РАБОТИ"]
[1.1000000000000001,"Внимателна демонтажа на дрвен прозор, застаклен со единечно стакло, комлет со окапница, потпрозорска даска, заедно со пренос и складирање на материјалот надвор од објектот или на локација предвидена од Надзорниот орган."]
["П1","Трокрилен прозор"]
[null,"140/120","парче",2,null,{"$f":"D8*E8","v":0}]
["П2","Трокрилен прозор"]
[null,"150/120","парче",1,null,{"$f":"D10*E10","v":0}]
[1.2,"Внимателна демонтажа на влезна врата комплет со каса и праг заедно со пренос и складирање на материјалот надвор од објектот или на локација предвидена од Надзорниот орган."]
["В1","Еднокрилна влезна врата"]
[null,"105/205","парче",1,null,{"$f":"D13*E13","v":0}]
[1.3,"Демонтажа на ПВЦ ролетна со надворешна кутија заедно со пренос и складирање на материјалот надвор од објектот или на локација предвидена од Надзорниот орган.","парче",3,null,{"$f":"D14*E14","v":0}]
[null,"Вкупно ПОДГОТВИТЕЛНИ РАБОТИ",null,null,null,{"$f":"SUM(F6:F13)","v":0}]
[]
[2," СТОЛАРСКИ РАБОТИ"]
[2.1,"Земање на мерки на лице место, изработка, транспорт и монтажа на фасадни ПВЦ прозори и врати, во бела боја RAL 9010 (Pure white), 5 коморни со средишен дихдунг, топлинска изолација за целиот прозорец  U≤1.8 W/m²K, надворешен слој од високо квалитетен премаз, звучна изолација  без челично армирање до Rwp=35 dB, застаклување сo термопан стакло 4+12+4,  заштита од провалување до класа на отпор 3, до класа на отпор 2 без челик, пропустливост на воздух 4 (EN 12207), заштита од поројни дождови 9А (ЕН 12208). Вратите да се со исполна од ПВЦ панел со д=2см. Производител и тип по избор на Инвеститорот \n(ѕидарска мерка)."]
["П1","Двокрилен прозор"]
[null,"140/120","парче",2,null,{"$f":"D20*E20","v":0}]
["П2","Двокрилен прозор"]
[null,"150/120","парче",1,null,{"$f":"D22*E22","v":0}]
["В1","Еднокрилна влезна врата, со квака и патент брава"]
[null,"105/205","парче",1,null,{"$f":"D24*E24","v":0}]
[null,"Вкупно СТОЛАРСКИ РАБОТИ: ",null,null,null,{"$f":"SUM(F19:F24)","v":0}]
[]
[3,"ФАСАДЕРСКИ  РАБОТИ"]
[3.1,"Изработка на шпалетна со декоративен минерален фасаден малтер и фасадна боја","m`",{"$f":"SUM(B29)","v":20.95},0,{"$f":"SUM(D28*E28)","v":0}]
[null,{"$f":"4*(1.4+1.2)+2*(1.5+1.2)+(2*2.05+1.05)","v":20.95}]
[null,"Вкупно ФАСАДЕРСКИ РАБОТИ: ",null,null,null,{"$f":"SUM(F28:F29)","v":0}]
[]
[4,"РАЗНИ РАБОТИ"]
[4.0999999999999996,"Изработка и местење на опшивка на прозорски окапник од поцинкуван пластифициран апкантован челичен лим д=0.55мм, во светло сива боја според RAL 9002 (Grey white),  РШ 30, поставени на метален флах за нивелирање на пад. ","m'",{"$f":"SUM(B34)","v":4.3},0,{"$f":"D33*E33","v":0}]
[null,{"$f":"2*1.4+1.5","v":4.3}]
[4.2,"Изработка и монтажа на внатрешен прозорски банак од ПВЦ, ш-15 см, во бела боја според RAL 9010 (pure white)","m'",{"$f":"SUM(B36)","v":4.3},0,0]
[null,{"$f":"2*1.4+1.5","v":4.3}]
[4.3,"Завршно глетување и молерисување на внатрешна шпалетна околу новопоставени  прозори и врати, заедно со метална аголна лајсна.","m'",{"$f":"SUM(B38)","v":20.95},0,0]
[null,{"$f":"4*(1.4+1.2)+2*(1.5+1.2)+(2*2.05+1.05)","v":20.95}]
[4.4000000000000004,"Изработка и монтажа на праг кај влезна врата, од мермер со д-3см, со обработени ивици, полиран, во бела боја, дим.105 см\nЗемање на мерка на лице место.","парче",1,0,{"$f":"D39*E39","v":0}]
[null,"Вкупно РАЗНИ РАБОТИ: ",null,null,null,{"$f":"SUM(F33:F39)","v":0}]
[]
[null,"Р Е К А П И Т У Л А Р"]
[]
[1,"ПОДГОТВИТЕЛНИ РАБОТИ",null,null,null,{"$f":"SUM(F15)","v":0}]
[2,"СТОЛАРСКИ РАБОТИ",null,null,null,{"$f":"SUM(F25)","v":0}]
[3,"ФАСАДЕРСКИ РАБОТИ",null,null,null,{"$f":"SUM(F30)","v":0}]
[4,"РАЗНИ РАБОТИ",null,null,null,{"$f":"SUM(F40)","v":0}]
[]
[null,"СЕ ВКУПНО",null,null,null,{"$f":"SUM(F44:F47)","v":0}]

{"sheet":"29-52","index":7,"n_rows":61,"n_cols":6,"rows_kept":61,"cut":false,"hidden":false,"merged":[[34,0,35,0],[57,1,57,2],[10,0,11,0],[0,1,0,4],[1,1,1,5],[5,2,5,5],[12,0,13,0],[14,0,15,0],[17,0,18,0],[24,0,25,0],[26,0,27,0],[28,0,29,0],[30,0,31,0],[32,0,33,0],[6,0,7,0],[8,0,9,0]]}
[null,"ПРЕДМЕР - ПРЕСМЕТКА"]
[null,"Градежни и градежно занатски работи за инвестиционо тековно одржување со имплементација за мерки за енергетска ефикасностна  индивидуален станбен објект на ул. Богомилски Поход бр. 1-1"]
["Ред. бр.","Опис на работа","Мера","Количина","Единечна цена","Вкупна цена"]
[1,2,3,4,5,6]
[1,"ПОДГОТВИТЕЛНИ РАБОТИ"]
[1.1000000000000001,"Внимателна демонтажа на дрвен прозор, застаклен со единечно стакло, комлет со окапница, потпрозорска даска, заедно со пренос и складирање на материјалот надвор од објектот или на локација предвидена од Надзорниот орган."]
["П1","Еднокрилен прозор"]
[null,"60/60","парче",1,null,{"$f":"D8*E8","v":0}]
["П2","Трокрилен прозор"]
[null,"140/120","парче",1,null,{"$f":"D10*E10","v":0}]
["П3","Двокрилен прозор"]
[null,"140/140","парче",1,null,{"$f":"D12*E12","v":0}]
["П4","Трокрилен прозор"]
[null,"160/135","парче",1,null,{"$f":"D14*E14","v":0}]
["П5","Двокрилен прозор"]
[null,"175/150","парче",1,null,{"$f":"D16*E16","v":0}]
[1.2,"Внимателна демонтажа на влезна врата комплет со каса и праг заедно со пренос и складирање на материјалот надвор од објектот или на локација предвидена од Надзорниот орган."]
["В1","Еднокрилна влезна врата"]
[null,"105/205","парче",1,null,{"$f":"D19*E19","v":0}]
[1.3,"Демонтажа на ПВЦ ролетна со надворешна кутија заедно со пренос и складирање на материјалот надвор од објектот или на локација предвидена од Надзорниот орган.","парче",3,null,{"$f":"D20*E20","v":0}]
[null,"Вкупно ПОДГОТВИТЕЛНИ РАБОТИ",null,null,null,{"$f":"SUM(F6:F20)","v":0}]
[]
[2," СТОЛАРСКИ РАБОТИ"]
[2.1,"Земање на мерки на лице место, изработка, транспорт и монтажа на фасадни ПВЦ прозори и врати, во бела боја RAL 9010 (Pure white), 5 коморни со средишен дихдунг, топлинска изолација за целиот прозорец  U≤1.8 W/m²K, надворешен слој од високо квалитетен премаз, звучна изолација  без челично армирање до Rwp=35 dB, застаклување сo термопан стакло 4+12+4,  заштита од провалување до класа на отпор 3, до класа на отпор 2 без челик, пропустливост на воздух 4 (EN 12207), заштита од поројни дождови 9А (ЕН 12208). Вратите да се со исполна од ПВЦ панел со д=2см. Производител и тип по избор на Инвеститорот \n(ѕидарска мерка)."]
["П1","Еднокрилен прозор"]
[null,"60/60","парче",1,null,{"$f":"D26*E26","v":0}]
["П2","Двокрилен прозор"]
[null,"140/120","парче",1,null,{"$f":"D28*E28","v":0}]
["П3","Двокрилен прозор"]
[null,"140/140","парче",1,null,{"$f":"D30*E30","v":0}]
["П4","Двокрилен прозор"]
[null,"160/135","парче",1,null,{"$f":"D32*E32","v":0}]
["П5","Двокрилен прозор"]
[null,"175/150","парче",1,null,{"$f":"D34*E34","v":0}]
["В1","Еднокрилна влезна врата, со квака и патент брава"]
[null,"105/205","парче",1,null,{"$f":"D36*E36","v":0}]
[null,"Вкупно СТОЛАРСКИ РАБОТИ: ",null,null,null,{"$f":"SUM(F25:F36)","v":0}]
[]
[3,"ФАСАДЕРСКИ  РАБОТИ"]
[3.1,"Изработка на шпалетна со декоративен минерален фасаден малтер и фасадна боја","m`",{"$f":"SUM(B41)","v":30.75},0,{"$f":"SUM(D40*E40)","v":0}]
[null,{"$f":"2*(0.6+0.6)+2*(1.4+1.2)+2*(1.4+1.4)+2*(1.6+1.35)+2*(1.75+1.5)+(2*2.05+1.05)","v":30.75}]
[null,"Вкупно ФАСАДЕРСКИ РАБОТИ: ",null,null,null,{"$f":"SUM(F40:F41)","v":0}]
[]
[4,"РАЗНИ РАБОТИ"]
[4.0999999999999996,"Изработка и местење на опшивка на прозорски окапник од поцинкуван пластифициран апкантован челичен лим д=0.55мм, во светло сива боја според RAL 9002 (Grey white),  РШ 30, поставени на метален флах за нивелирање на пад. ","m'",{"$f":"SUM(B46)","v":6.75},0,{"$f":"D45*E45","v":0}]
[null,{"$f":"0.6+1.4+1.4+1.6+1.75","v":6.75}]
[4.2,"Изработка и монтажа на внатрешен прозорски банак од ПВЦ, ш-15 см, во бела боја според RAL 9010 (pure white)","m'",{"$f":"SUM(B48)","v":6.75},0,0]
[null,{"$f":"0.6+1.4+1.4+1.6+1.75","v":6.75}]
[4.3,"Завршно глетување и молерисување на внатрешна шпалетна околу новопоставени  прозори и врати, заедно со метална аголна лајсна.","m'",{"$f":"SUM(B50)","v":30.75},0,0]
[null,{"$f":"2*(0.6+0.6)+2*(1.4+1.2)+2*(1.4+1.4)+2*(1.6+1.35)+2*(1.75+1.5)+(2*2.05+1.05)","v":30.75}]
[4.4000000000000004,"Изработка и монтажа на праг кај влезна врата, од мермер со д-3см, со обработени ивици, полиран, во бела боја, дим. 105 см. Земање на мерка на лице место.","парче",1,0,{"$f":"D51*E51","v":0}]
[null,"Вкупно РАЗНИ РАБОТИ: ",null,null,null,{"$f":"SUM(F45:F51)","v":0}]
[]
[null,"Р Е К А П И Т У Л А Р"]
[]
[1,"ПОДГОТВИТЕЛНИ РАБОТИ",null,null,null,{"$f":"SUM(F21)","v":0}]
[2,"СТОЛАРСКИ РАБОТИ",null,null,null,{"$f":"SUM(F37)","v":0}]
[3,"ФАСАДЕРСКИ РАБОТИ",null,null,null,{"$f":"SUM(F42)","v":0}]
[4,"РАЗНИ РАБОТИ",null,null,null,{"$f":"SUM(F52)","v":0}]
[]
[null,"СЕ ВКУПНО",null,null,null,{"$f":"SUM(F56:F59)","v":0}]

{"sheet":"30-53","index":8,"n_rows":56,"n_cols":6,"rows_kept":56,"cut":false,"hidden":false,"merged":[[10,0,11,0],[12,0,13,0],[6,0,7,0],[8,0,9,0],[0,1,0,4],[1,1,1,5],[5,2,5,5],[29,6,30,6],[52,1,52,2],[15,6,16,6],[21,0,22,0],[23,0,24,0],[25,0,26,0],[27,0,28,0],[15,0,16,0],[29,0,30,0]]}
[null,"ПРЕДМЕР - ПРЕСМЕТКА"]
[null,"Градежни и градежно занатски работи за инвестиционо тековно одржување со имплементација за мерки за енергетска ефикасностна  индивидуален станбен објект на ул. Божин Николов Силни бр. 117"]
["Ред. бр.","Опис на работа","Мера","Количина","Единечна цена","Вкупна цена"]
[1,2,3,4,5,6]
[1,"ПОДГОТВИТЕЛНИ РАБОТИ"]
[1.1000000000000001,"Внимателна демонтажа на дрвен прозор, застаклен со единечно стакло, комлет со окапница, потпрозорска даска и заштитна метална решетка, заедно со пренос и складирање на материјалот надвор од објектот или на локација предвидена од Надзорниот орган."]
["П1","Еднокрилен прозор"]
[null,"65/70","парче",1,null,{"$f":"D8*E8","v":0}]
["П2","Двокрилен прозор"]
[null,"100/75","парче",1,null,{"$f":"D10*E10","v":0}]
["П3","Двокрилен прозор"]
[null,"145/140","парче",1,null,{"$f":"D12*E12","v":0}]
["П4","Трокрилен прозор"]
[null,"190/145","парче",2,null,{"$f":"D14*E14","v":0}]
[1.2,"Внимателна демонтажа на влезна врата комплет со каса и праг заедно со пренос и складирање на материјалот надвор од објектот или на локација предвидена од Надзорниот орган."]
["В1","Еднокрилна влезна врата"]
[null,"105/205","парче",1,null,{"$f":"D17*E17","v":0}]
[null,"Вкупно ПОДГОТВИТЕЛНИ РАБОТИ",null,null,null,{"$f":"SUM(F6:F17)","v":0}]
[]
[2," СТОЛАРСКИ РАБОТИ"]
[2.1,"Земање на мерки на лице место, изработка, транспорт и монтажа на фасадни ПВЦ прозори и врати, во бела боја RAL 9010 (Pure white), 5 коморни со средишен дихдунг, топлинска изолација за целиот прозорец  U≤1.8 W/m²K, надворешен слој од високо квалитетен премаз, звучна изолација  без челично армирање до Rwp=35 dB, застаклување сo термопан стакло 4+12+4,  заштита од провалување до класа на отпор 3, до класа на отпор 2 без челик, пропустливост на воздух 4 (EN 12207), заштита од поројни дождови 9А (ЕН 12208). Вратите да се со исполна од ПВЦ панел со д=2см. Производител и тип по избор на Инвеститорот \n(ѕидарска мерка)."]
["П1","Еднокрилен прозор"]
[null,"65/70","парче",1,null,{"$f":"D23*E23","v":0}]
["П2","Двокрилен прозор"]
[null,"100/75","парче",1,null,{"$f":"D25*E25","v":0}]
["П3","Двокрилен прозор"]
[null,"145/140","парче",1,null,{"$f":"D27*E27","v":0}]
["П4","Двокрилен прозор"]
[null,"190/145","парче",2,null,{"$f":"D29*E29","v":0}]
["В1","Еднокрилна влезна врата, со квака и патент брава"]
[null,"105/205","парче",1,null,{"$f":"D31*E31","v":0}]
[null,"Вкупно СТОЛАРСКИ РАБОТИ: ",null,null,null,{"$f":"SUM(F22:F31)","v":0}]
[]
[3,"ФАСАДЕРСКИ  РАБОТИ"]
[3.1,"Изработка на шпалетна со декоративен минерален фасаден малтер и фасадна боја","m`",{"$f":"SUM(B36)","v":30.449999999999996},0,{"$f":"SUM(D35*E35)","v":0}]
[null,{"$f":"2*(0.65+0.7)+2*(1+0.75)+2*(1.45+1.4)+4*(1.9+1.45)+(2*2.05+1.05)","v":30.449999999999996}]
[null,"Вкупно ФАСАДЕРСКИ РАБОТИ: ",null,null,null,{"$f":"SUM(F35:F36)","v":0}]
[]
[4,"РАЗНИ РАБОТИ"]
[4.0999999999999996,"Изработка и местење на опшивка на прозорски окапник од поцинкуван пластифициран апкантован челичен лим д=0.55мм, во светло сива боја според RAL 9002 (Grey white),  РШ 30, поставени на метален флах за нивелирање на пад. ","m'",{"$f":"SUM(B41)","v":6.8999999999999995},0,{"$f":"D40*E40","v":0}]
[null,{"$f":"0.65+1+1.45+2*1.9","v":6.8999999999999995}]
[4.2,"Изработка и монтажа на внатрешен прозорски банак од ПВЦ, ш-15 см, во бела боја според RAL 9010 (pure white)","m'",{"$f":"SUM(B43)","v":6.8999999999999995},0,0]
[null,{"$f":"0.65+1+1.45+2*1.9","v":6.8999999999999995}]
[4.3,"Завршно глетување и молерисување на внатрешна шпалетна околу новопоставени  прозори и врати, заедно со метална аголна лајсна.","m'",{"$f":"SUM(B45)","v":30.449999999999996},0,0]
[null,{"$f":"2*(0.65+0.7)+2*(1+0.75)+2*(1.45+1.4)+4*(1.9+1.45)+(2*2.05+1.05)","v":30.449999999999996}]
[4.4000000000000004,"Изработка и монтажа на праг кај влезна врата, од мермер со д-3см, со обработени ивици, полиран, во бела боја, дим. 105см. Земање на мерка на лице место.","парче",1,0,{"$f":"D46*E46","v":0}]
[null,"Вкупно РАЗНИ РАБОТИ: ",null,null,null,{"$f":"SUM(F40:F46)","v":0}]
[]
[null,"Р Е К А П И Т У Л А Р"]
[]
[1,"ПОДГОТВИТЕЛНИ РАБОТИ",null,null,null,{"$f":"SUM(F18)","v":0}]
[2,"СТОЛАРСКИ РАБОТИ",null,null,null,{"$f":"SUM(F32)","v":0}]
[3,"ФАСАДЕРСКИ РАБОТИ",null,null,null,{"$f":"SUM(F37)","v":0}]
[4,"РАЗНИ РАБОТИ",null,null,null,{"$f":"SUM(F47)","v":0}]
[]
[null,"СЕ ВКУПНО",null,null,null,{"$f":"SUM(F51:F54)","v":0}]

{"sheet":"31-54","index":9,"n_rows":57,"n_cols":6,"rows_kept":57,"cut":false,"hidden":false,"merged":[[53,1,53,2],[13,0,14,0],[0,1,0,4],[1,1,1,5],[5,2,5,5],[6,0,7,0],[8,0,9,0],[10,0,11,0],[15,0,16,0],[22,0,23,0],[24,0,25,0],[26,0,27,0],[28,0,29,0],[30,0,31,0]]}
[null,"ПРЕДМЕР - ПРЕСМЕТКА"]
[null,"Градежни и градежно занатски работи за инвестиционо тековно одржување со имплементација за мерки за енергетска ефикасностна  индивидуален станбен објект на ул. Горноврановска бр. 79"]
["Ред. бр.","Опис на работа","Мера","Количина","Единечна цена","Вкупна цена"]
[1,2,3,4,5,6]
[1,"ПОДГОТВИТЕЛНИ РАБОТИ"]
[1.1000000000000001,"Внимателна демонтажа на дрвен прозор, застаклен со единечно стакло, комлет со окапница, потпрозорска даска, заедно со пренос и складирање на материјалот надвор од објектот или на локација предвидена од Надзорниот орган."]
["П1","Еднокрилен прозор"]
[null,"72/80","парче",2,null,{"$f":"D8*E8","v":0}]
["П2","Трокрилен прозор"]
[null,"170/145","парче",4,null,{"$f":"D10*E10","v":0}]
["П3","Трокрилен прозор"]
[null,"175/135","парче",2,null,{"$f":"D12*E12","v":0}]
[1.2,"Внимателна демонтажа на влезна врата комплет со каса и праг заедно со пренос и складирање на материјалот надвор од објектот или на локација предвидена од Надзорниот орган."]
["В1","Еднокрилна влезна врата"]
[null,"107/207","парче",1,null,{"$f":"D15*E15","v":0}]
["В2","Еднокрилна влезна врата"]
[null,"110/215","парче",1,null,{"$f":"D17*E17","v":0}]
[1.3,"Внимателна демонтажа на ПВЦ ролетна со надворешна кутија заедно со пренос и складирање на материјалот надвор од објектот или на локација предвидена од Надзорниот орган. (за повторна монтажа)","парче",4,null,{"$f":"D18*E18","v":0}]
[null,"Вкупно ПОДГОТВИТЕЛНИ РАБОТИ",null,null,null,{"$f":"SUM(F6:F18)","v":0}]
[]
[2," СТОЛАРСКИ РАБОТИ"]
[2.1,"Земање на мерки на лице место, изработка, транспорт и монтажа на фасадни ПВЦ прозори и врати, во бела боја RAL 9010 (Pure white), 5 коморни со средишен дихдунг, топлинска изолација за целиот прозорец  U≤1.8 W/m²K, надворешен слој од високо квалитетен премаз, звучна изолација  без челично армирање до Rwp=35 dB, застаклување сo термопан стакло 4+12+4,  заштита од провалување до класа на отпор 3, до класа на отпор 2 без челик, пропустливост на воздух 4 (EN 12207), заштита од поројни дождови 9А (ЕН 12208). Вратите да се со исполна од ПВЦ панел со д=2см. Производител и тип по избор на Инвеститорот \n(ѕидарска мерка)."]
["П1","Еднокрилен прозор"]
[null,"72/80","парче",2,null,{"$f":"D24*E24","v":0}]
["П2","Трокрилен прозор"]
[null,"170/145","парче",4,null,{"$f":"D26*E26","v":0}]
["П3","Трокрилен прозор"]
[null,"175/135","парче",2,null,{"$f":"D28*E28","v":0}]
["В1","Еднокрилна влезна врата, со квака и патент брава"]
[null,"107/207","парче",1,null,{"$f":"D30*E30","v":0}]
["В2","Еднокрилна влезна врата, со квака и патент брава"]
[null,"110/215","парче",1,null,{"$f":"D32*E32","v":0}]
[null,"Вкупно СТОЛАРСКИ РАБОТИ: ",null,null,null,{"$f":"SUM(F23:F32)","v":0}]
[]
[3,"ФАСАДЕРСКИ  РАБОТИ"]
[3.1,"Изработка на шпалетна со декоративен минерален фасаден малтер и фасадна боја","m`",{"$f":"SUM(B37)","v":54.29},0,{"$f":"SUM(D36*E36)","v":0}]
[null,{"$f":"4*(0.72+0.8)+8*(1.7+1.45)+4*(1.75+1.35)+(2*2.07+1.07)+(2*2.15+1.1)","v":54.29}]
[null,"Вкупно ФАСАДЕРСКИ РАБОТИ: ",null,null,null,{"$f":"SUM(F36:F37)","v":0}]
[]
[4,"РАЗНИ РАБОТИ"]
[4.0999999999999996,"Изработка и местење на опшивка на прозорски окапник од поцинкуван пластифициран апкантован челичен лим д=0.55мм, во светло сива боја според RAL 9002 (Grey white),  РШ 30, поставени на метален флах за нивелирање на пад. ","m'",{"$f":"SUM(B42)","v":11.74},0,{"$f":"D41*E41","v":0}]
[null,{"$f":"2*0.72+4*1.7+2*1.75","v":11.74}]
[4.2,"Изработка и монтажа на внатрешен прозорски банак од ПВЦ, ш-15 см, во бела боја според RAL 9010 (pure white)","m'",{"$f":"SUM(B44)","v":11.74},0,0]
[null,{"$f":"2*0.72+4*1.7+2*1.75","v":11.74}]
[4.3,"Завршно глетување и молерисување на внатрешна шпалетна околу новопоставени  прозори и врати, заедно со метална аголна лајсна.","m'",{"$f":"SUM(B46)","v":54.29},0,0]
[null,{"$f":"4*(0.72+0.8)+8*(1.7+1.45)+4*(1.75+1.35)+(2*2.07+1.07)+(2*2.15+1.1)","v":54.29}]
[4.4000000000000004,"Изработка и монтажа на праг кај влезна врата, од мермер со д-3см, со обработени ивици, полиран, во бела боја, дим.110 см\nЗемање на мерка на лице место.","парче",2,0,{"$f":"D47*E47","v":0}]
[null,"Вкупно РАЗНИ РАБОТИ: ",null,null,null,{"$f":"SUM(F41:F47)","v":0}]
[]
[null,"Р Е К А П И Т У Л А Р"]
[]
[1,"ПОДГОТВИТЕЛНИ РАБОТИ",null,null,null,{"$f":"SUM(F19)","v":0}]
[2,"СТОЛАРСКИ РАБОТИ",null,null,null,{"$f":"SUM(F33)","v":0}]
[3,"ФАСАДЕРСКИ РАБОТИ",null,null,null,{"$f":"SUM(F38)","v":0}]
[4,"РАЗНИ РАБОТИ",null,null,null,{"$f":"SUM(F48)","v":0}]
[]
[null,"СЕ ВКУПНО",null,null,null,{"$f":"SUM(F52:F55)","v":0}]

{"sheet":"32-56","index":10,"n_rows":35,"n_cols":6,"rows_kept":35,"cut":false,"hidden":false,"merged":[[0,1,0,4],[1,1,1,5],[6,0,7,0],[31,1,31,2],[12,0,13,0]]}
[null,"ПРЕДМЕР - ПРЕСМЕТКА"]
[null,"Градежни и градежно занатски работи за инвестиционо тековно одржување со имплементација за мерки за енергетска ефикасностна  индивидуален станбен објект на ул. Горноврановска бр. 92"]
["Ред. бр.","Опис на работа","Мера","Количина","Единечна цена","Вкупна цена"]
[1,2,3,4,5,6]
[1,"ПОДГОТВИТЕЛНИ РАБОТИ"]
[1.1000000000000001,"Внимателна демонтажа на влезна врата комплет со каса и праг заедно со пренос и складирање на материјалот надвор од објектот или на локација предвидена од Надзорниот орган."]
["В1","Двокрилна влезна врата"]
[null,"140/205","парче",1,null,{"$f":"D8*E8","v":0}]
[null,"Вкупно ПОДГОТВИТЕЛНИ РАБОТИ",null,null,null,{"$f":"SUM(F6:F8)","v":0}]
[]
[2," СТОЛАРСКИ РАБОТИ"]
[2.1,"Земање на мерки на лице место, изработка, транспорт и монтажа на фасадна ПВЦ влезна врата, во бела боја RAL 9010 (Pure white), 5 коморни со средишен дихдунг, топлинска изолација за целата врата  U≤1.8 W/m²K, надворешен слој од високо квалитетен премаз, звучна изолација  без челично армирање до Rwp=35 dB, застаклување сo термопан стакло 4+12+4,  заштита од провалување до класа на отпор 3, до класа на отпор 2 без челик, пропустливост на воздух 4 (EN 12207), заштита од поројни дождови 9А (ЕН 12208). Вратите да се со исполна од ПВЦ панел со д=2см. Производител и тип по избор на Инвеститорот \n(ѕидарска мерка)."]
["В1","Двокрилна влезна врата (95+45)"]
[null,"140/205","парче",1,null,{"$f":"D14*E14","v":0}]
[null,"Вкупно СТОЛАРСКИ РАБОТИ: ",null,null,null,{"$f":"SUM(F12:F14)","v":0}]
[]
[3,"ФАСАДЕРСКИ  РАБОТИ"]
[3.1,"Изработка на шпалетна со декоративен минерален фасаден малтер и фасадна боја","m`",{"$f":"SUM(B19)","v":5.5},0,{"$f":"SUM(D18*E18)","v":0}]
[null,{"$f":"2*2.05+1.4","v":5.5}]
[null,"Вкупно ФАСАДЕРСКИ РАБОТИ: ",null,null,null,{"$f":"SUM(F18:F19)","v":0}]
[]
[4,"РАЗНИ РАБОТИ"]
[4.0999999999999996,"Завршно глетување и молерисување на внатрешна шпалетна околу новопоставени  прозори и врати, заедно со метална аголна лајсна.","m'",{"$f":"SUM(B24)","v":5.5},0,{"$f":"D23*E23","v":0}]
[null,{"$f":"2*2.05+1.4","v":5.5}]
[4.2,"Изработка и монтажа на праг кај влезна врата, од мермер со д-3см, со обработени ивици, полиран, во бела боја, дим.140 см\nЗемање на мерка на лице место.","парче",1,0,{"$f":"D25*E25","v":0}]
[null,"Вкупно РАЗНИ РАБОТИ: ",null,null,null,{"$f":"SUM(F23:F25)","v":0}]
[]
[null,"Р Е К А П И Т У Л А Р"]
[]
[1,"ПОДГОТВИТЕЛНИ РАБОТИ",null,null,null,{"$f":"SUM(F9)","v":0}]
[2,"СТОЛАРСКИ РАБОТИ",null,null,null,{"$f":"SUM(F15)","v":0}]
[3,"ФАСАДЕРСКИ РАБОТИ",null,null,null,{"$f":"SUM(F20)","v":0}]
[4,"РАЗНИ РАБОТИ",null,null,null,{"$f":"SUM(F26)","v":0}]
[]
[null,"СЕ ВКУПНО",null,null,null,{"$f":"SUM(F30:F33)","v":0}]

{"sheet":"33-60","index":11,"n_rows":35,"n_cols":6,"rows_kept":35,"cut":false,"hidden":false,"merged":[[0,1,0,4],[1,1,1,5],[6,0,7,0],[31,1,31,2],[12,0,13,0]]}
[null,"ПРЕДМЕР - ПРЕСМЕТКА"]
[null,"Градежни и градежно занатски работи за инвестиционо тековно одржување со имплементација за мерки за енергетска ефикасностна  индивидуален станбен објект на ул. Мите Богоевски бр.31а"]
["Ред. бр.","Опис на работа","Мера","Количина","Единечна цена","Вкупна цена"]
[1,2,3,4,5,6]
[1,"ПОДГОТВИТЕЛНИ РАБОТИ"]
[1.1000000000000001,"Внимателна демонтажа на влезна врата комплет со каса и праг заедно со пренос и складирање на материјалот надвор од објектот или на локација предвидена од Надзорниот орган."]
["В1","Еднокрилна влезна врата"]
[null,"100/210","парче",2,null,{"$f":"D8*E8","v":0}]
[null,"Вкупно ПОДГОТВИТЕЛНИ РАБОТИ",null,null,null,{"$f":"SUM(F6:F8)","v":0}]
[]
[2," СТОЛАРСКИ РАБОТИ"]
[1.1000000000000001,"Земање на мерки на лице место, изработка, транспорт и монтажа на фасадна ПВЦ влезна врата, во бела боја RAL 9010 (Pure white), 5 коморни со средишен дихдунг, топлинска изолација за целата врата  U≤1.8 W/m²K, надворешен слој од високо квалитетен премаз, звучна изолација  без челично армирање до Rwp=35 dB, застаклување сo термопан стакло 4+12+4,  заштита од провалување до класа на отпор 3, до класа на отпор 2 без челик, пропустливост на воздух 4 (EN 12207), заштита од поројни дождови 9А (ЕН 12208). Вратите да се со исполна од ПВЦ панел со д=2см. Производител и тип по избор на Инвеститорот \n(ѕидарска мерка)."]
["В1","Еднокрилна влезна врата, со квака и патент брава"]
[null,"100/210","парче",2,null,{"$f":"D14*E14","v":0}]
[null,"Вкупно СТОЛАРСКИ РАБОТИ: ",null,null,null,{"$f":"SUM(F12:F14)","v":0}]
[]
[3,"ФАСАДЕРСКИ  РАБОТИ"]
[3.1,"Изработка на шпалетна со декоративен минерален фасаден малтер и фасадна боја","m`",{"$f":"SUM(B19)","v":10.4},0,{"$f":"SUM(D18*E18)","v":0}]
[null,{"$f":"(2*(2*2.1+1))","v":10.4}]
[null,"Вкупно ФАСАДЕРСКИ РАБОТИ: ",null,null,null,{"$f":"SUM(F18:F19)","v":0}]
[]
[4,"РАЗНИ РАБОТИ"]
[4.0999999999999996,"Завршно глетување и молерисување на внатрешна шпалетна околу новопоставени  прозори и врати, заедно со метална аголна лајсна.","m'",{"$f":"SUM(B24)","v":10.4},0,{"$f":"D23*E23","v":0}]
[null,{"$f":"(2*(2*2.1+1))","v":10.4}]
[4.2,"Изработка и монтажа на праг кај влезна врата, од мермер со д-3см, со обработени ивици, полиран, во бела боја, дим.100 см\nЗемање на мерка на лице место.","парче",2,0,{"$f":"D25*E25","v":0}]
[null,"Вкупно РАЗНИ РАБОТИ: ",null,null,null,{"$f":"SUM(F23:F25)","v":0}]
[]
[null,"Р Е К А П И Т У Л А Р"]
[]
[1,"ПОДГОТВИТЕЛНИ РАБОТИ",null,null,null,{"$f":"SUM(F9)","v":0}]
[2,"СТОЛАРСКИ РАБОТИ",null,null,null,{"$f":"SUM(F15)","v":0}]
[3,"ФАСАДЕРСКИ РАБОТИ",null,null,null,{"$f":"SUM(F20)","v":0}]
[4,"РАЗНИ РАБОТИ",null,null,null,{"$f":"SUM(F26)","v":0}]
[]
[null,"СЕ ВКУПНО",null,null,null,{"$f":"SUM(F30:F33)","v":0}]

{"sheet":"34-64","index":12,"n_rows":48,"n_cols":6,"rows_kept":48,"cut":false,"hidden":false,"merged":[[44,1,44,2],[0,1,0,4],[1,1,1,5],[5,2,5,5],[11,0,12,0],[17,0,18,0],[19,0,20,0],[21,0,22,0],[6,0,7,0],[8,0,9,0]]}
[null,"ПРЕДМЕР - ПРЕСМЕТКА"]
[null,"Градежни и градежно занатски работи за инвестиционо тековно одржување со имплементација за мерки за енергетска ефикасностна  индивидуален станбен објект на ул. Детелин Војвода бр. 9"]
["Ред. бр.","Опис на работа","Мера","Количина","Единечна цена","Вкупна цена"]
[1,2,3,4,5,6]
[1,"ПОДГОТВИТЕЛНИ РАБОТИ"]
[1.1000000000000001,"Внимателна демонтажа на дрвен прозор, застаклен со единечно стакло, комлет со окапница, потпрозорска даска, заедно со пренос и складирање на материјалот надвор од објектот или на локација предвидена од Надзорниот орган."]
["П1","Двокрилен прозор со еднокрилна балконска врата"]
[null,"110/120 + 85/195","парче",1,null,{"$f":"D8*E8","v":0}]
["П2","Трокрилен прозор"]
[null,"170/120","парче",1,null,{"$f":"D10*E10","v":0}]
[1.2,"Внимателна демонтажа на влезна врата комплет со каса и праг заедно со пренос и складирање на материјалот надвор од објектот или на локација предвидена од Надзорниот орган."]
["В1","Еднокрилна влезна врата"]
[null,"90/205","парче",1,null,{"$f":"D13*E13","v":0}]
[null,"Вкупно ПОДГОТВИТЕЛНИ РАБОТИ",null,null,null,{"$f":"SUM(F6:F13)","v":0}]
[]
[2," СТОЛАРСКИ РАБОТИ"]
[2.1,"Земање на мерки на лице место, изработка, транспорт и монтажа на фасадни ПВЦ прозори и врати, во бела боја RAL 9010 (Pure white), 5 коморни со средишен дихдунг, топлинска изолација за целиот прозорец  U≤1.8 W/m²K, надворешен слој од високо квалитетен премаз, звучна изолација  без челично армирање до Rwp=35 dB, застаклување сo термопан стакло 4+12+4,  заштита од провалување до класа на отпор 3, до класа на отпор 2 без челик, пропустливост на воздух 4 (EN 12207), заштита од поројни дождови 9А (ЕН 12208). Вратите да се со исполна од ПВЦ панел со д=2см. Производител и тип по избор на Инвеститорот \n(ѕидарска мерка)."]
["П1","Двокрилен прозор со еднокрилна балконска врата"]
[null,"110/120 + 85/195","парче",1,null,{"$f":"D19*E19","v":0}]
["П2","Двокрилен прозор"]
[null,"170/120","парче",1,null,{"$f":"D21*E21","v":0}]
["В1","Еднокрилна влезна врата, со квака и патент брава"]
[null,"90/205","парче",1,null,{"$f":"D23*E23","v":0}]
[null,"Вкупно СТОЛАРСКИ РАБОТИ: ",null,null,null,{"$f":"SUM(F18:F23)","v":0}]
[]
[3,"ФАСАДЕРСКИ  РАБОТИ"]
[3.1,"Изработка на шпалетна со декоративен минерален фасаден малтер и фасадна боја","m`",{"$f":"SUM(B28)","v":18.600000000000001},0,{"$f":"SUM(D27*E27)","v":0}]
[null,{"$f":"2*(1.95+1.95)+2*(1.2+1.7)+(2*2.05+0.9)","v":18.600000000000001}]
[null,"Вкупно ФАСАДЕРСКИ РАБОТИ: ",null,null,null,{"$f":"SUM(F27:F28)","v":0}]
[]
[4,"РАЗНИ РАБОТИ"]
[4.0999999999999996,"Изработка и местење на опшивка на прозорски окапник од поцинкуван пластифициран апкантован челичен лим д=0.55мм, во светло сива боја според RAL 9002 (Grey white),  РШ 30, поставени на метален флах за нивелирање на пад. ","m'",{"$f":"SUM(B33)","v":2.8},0,{"$f":"D32*E32","v":0}]
[null,{"$f":"1.1+1.7","v":2.8}]
[4.2,"Изработка и монтажа на внатрешен прозорски банак од ПВЦ, ш-15 см, во бела боја според RAL 9010 (pure white)","m'",{"$f":"SUM(B35)","v":2.8},0,0]
[null,{"$f":"1.1+1.7","v":2.8}]
[4.3,"Завршно глетување и молерисување на внатрешна шпалетна околу новопоставени  прозори и врати, заедно со метална аголна лајсна.","m'",{"$f":"SUM(B37)","v":18.600000000000001},0,0]
[null,{"$f":"2*(1.95+1.95)+2*(1.2+1.7)+(2*2.05+0.9)","v":18.600000000000001}]
[4.4000000000000004,"Изработка и монтажа на праг кај влезна врата, од мермер со д-3см, со обработени ивици, полиран, во бела боја, дим.90 см\nЗемање на мерка на лице место.","парче",1,0,{"$f":"D38*E38","v":0}]
[null,"Вкупно РАЗНИ РАБОТИ: ",null,null,null,{"$f":"SUM(F32:F38)","v":0}]
[]
[null,"Р Е К А П И Т У Л А Р"]
[]
[1,"ПОДГОТВИТЕЛНИ РАБОТИ",null,null,null,{"$f":"SUM(F14)","v":0}]
[2,"СТОЛАРСКИ РАБОТИ",null,null,null,{"$f":"SUM(F24)","v":0}]
[3,"ФАСАДЕРСКИ РАБОТИ",null,null,null,{"$f":"SUM(F29)","v":0}]
[4,"РАЗНИ РАБОТИ",null,null,null,{"$f":"SUM(F39)","v":0}]
[]
[null,"СЕ ВКУПНО",null,null,null,{"$f":"SUM(F43:F46)","v":0}]

{"sheet":"35-66","index":13,"n_rows":35,"n_cols":6,"rows_kept":35,"cut":false,"hidden":false,"merged":[[0,1,0,4],[1,1,1,5],[6,0,7,0],[12,0,13,0],[31,1,31,2]]}
[null,"ПРЕДМЕР - ПРЕСМЕТКА"]
[null,"Градежни и градежно занатски работи за инвестиционо тековно одржување со имплементација за мерки за енергетска ефикасностна  индивидуален станбен објект на ул. Зборско бр. 4а"]
["Ред. бр.","Опис на работа","Мера","Количина","Единечна цена","Вкупна цена"]
[1,2,3,4,5,6]
[1,"ПОДГОТВИТЕЛНИ РАБОТИ"]
[1.2,"Внимателна демонтажа на влезна врата комплет со каса и праг заедно со пренос и складирање на материјалот надвор од објектот или на локација предвидена од Надзорниот орган."]
["В1","Двокрилна влезна врата"]
[null,"145/205","парче",1,null,{"$f":"D8*E8","v":0}]
[null,"Вкупно ПОДГОТВИТЕЛНИ РАБОТИ",null,null,null,{"$f":"SUM(F6:F8)","v":0}]
[]
[2," СТОЛАРСКИ РАБОТИ"]
[2.1,"Земање на мерки на лице место, изработка, транспорт и монтажа на фасадна ПВЦ влезна врата, во бела боја RAL 9010 (Pure white), 5 коморни со средишен дихдунг, топлинска изолација за целата врата  U≤1.8 W/m²K, надворешен слој од високо квалитетен премаз, звучна изолација  без челично армирање до Rwp=35 dB, застаклување сo термопан стакло 4+12+4,  заштита од провалување до класа на отпор 3, до класа на отпор 2 без челик, пропустливост на воздух 4 (EN 12207), заштита од поројни дождови 9А (ЕН 12208). Вратите да се со исполна од ПВЦ панел со д=2см. Производител и тип по избор на Инвеститорот \n(ѕидарска мерка)."]
["В1","Двокрилна влезна врата (95+50), со квака и патент брава"]
[null,"145/205","парче",1,null,{"$f":"D14*E14","v":0}]
[null,"Вкупно СТОЛАРСКИ РАБОТИ: ",null,null,null,{"$f":"SUM(F12:F14)","v":0}]
[]
[3,"ФАСАДЕРСКИ  РАБОТИ"]
[3.1,"Изработка на шпалетна со декоративен минерален фасаден малтер и фасадна боја","m`",{"$f":"SUM(B19)","v":5.55},0,{"$f":"SUM(D18*E18)","v":0}]
[null,{"$f":"2*2.05+1.45","v":5.55}]
[null,"Вкупно ФАСАДЕРСКИ РАБОТИ: ",null,null,null,{"$f":"SUM(F18:F19)","v":0}]
[]
[4,"РАЗНИ РАБОТИ"]
[4.0999999999999996,"Завршно глетување и молерисување на внатрешна шпалетна околу новопоставени  прозори и врати, заедно со метална аголна лајсна.","m'",{"$f":"SUM(B24)","v":5.55},0,{"$f":"D23*E23","v":0}]
[null,{"$f":"2*2.05+1.45","v":5.55}]
[4.2,"Изработка и монтажа на праг кај влезна врата, од мермер со д-3см, со обработени ивици, полиран, во бела боја, дим.145 см\nЗемање на мерка на лице место.","парче",1,0,{"$f":"D25*E25","v":0}]
[null,"Вкупно РАЗНИ РАБОТИ: ",null,null,null,{"$f":"SUM(F23:F25)","v":0}]
[]
[null,"Р Е К А П И Т У Л А Р"]
[]
[1,"ПОДГОТВИТЕЛНИ РАБОТИ",null,null,null,{"$f":"SUM(F9)","v":0}]
[2,"СТОЛАРСКИ РАБОТИ",null,null,null,{"$f":"SUM(F15)","v":0}]
[3,"ФАСАДЕРСКИ РАБОТИ",null,null,null,{"$f":"SUM(F20)","v":0}]
[4,"РАЗНИ РАБОТИ",null,null,null,{"$f":"SUM(F26)","v":0}]
[]
[null,"СЕ ВКУПНО",null,null,null,{"$f":"SUM(F30:F33)","v":0}]

{"sheet":"36-67","index":14,"n_rows":65,"n_cols":6,"rows_kept":65,"cut":false,"hidden":false,"merged":[[0,1,0,4],[1,1,1,5],[34,0,35,0],[36,0,37,0],[38,0,39,0],[61,1,61,2],[5,2,5,5],[6,0,7,0],[8,0,9,0],[10,0,11,0],[12,0,13,0],[14,0,15,0],[26,0,27,0],[28,0,29,0],[30,0,31,0],[32,0,33,0],[16,0,17,0]]}
[null,"ПРЕДМЕР - ПРЕСМЕТКА"]
[null,"Градежни и градежно занатски работи за инвестиционо тековно одржување со имплементација за мерки за енергетска ефикасностна  индивидуален станбен објект на ул. Тодор Чангов 21 бр. 12"]
["Ред. бр.","Опис на работа","Мера","Количина","Единечна цена","Вкупна цена"]
[1,2,3,4,5,6]
[1,"ПОДГОТВИТЕЛНИ РАБОТИ"]
[1.1000000000000001,"Внимателна демонтажа на дрвен прозор, застаклен со единечно стакло, комлет со окапница, потпрозорска даска, заедно со пренос и складирање на материјалот надвор од објектот или на локација предвидена од Надзорниот орган."]
["П1","Еднокрилен прозор"]
[null,"50/75","парче",1,null,{"$f":"D8*E8","v":0}]
["П2","Еднокрилен прозор"]
[null,"60/60","парче",1,null,{"$f":"D10*E10","v":0}]
["П3","Еднокрилен прозор"]
[null,"80/160","парче",1,null,{"$f":"D12*E12","v":0}]
["П4","Трокрилен прозор"]
[null,"150/135","парче",1,null,{"$f":"D14*E14","v":0}]
["П5","Трокрилен прозор"]
[null,"160/135","парче",1,null,{"$f":"D16*E16","v":0}]
["П6","Трокрилен прозор"]
[null,"160/140","парче",1,null,{"$f":"D18*E18","v":0}]
[1.2,"Внимателна демонтажа на влезна врата комплет со каса и праг заедно со пренос и складирање на материјалот надвор од објектот или на локација предвидена од Надзорниот орган."]
["В1","Двокрилна влезна врата"]
[null,"140/220","парче",1,null,{"$f":"D21*E21","v":0}]
[1.3,"Внимателна демонтажа на ПВЦ ролетна со надворешна кутија заедно со пренос и складирање на материјалот надвор од објектот или на локација предвидена од Надзорниот орган. (за повторна монтажа)","парче",4,null,{"$f":"D22*E22","v":0}]
[null,"Вкупно ПОДГОТВИТЕЛНИ РАБОТИ",null,null,null,{"$f":"SUM(F6:F22)","v":0}]
[]
[2," СТОЛАРСКИ РАБОТИ"]
[2.1,"Земање на мерки на лице место, изработка, транспорт и монтажа на фасадни ПВЦ прозори и врати, во бела боја RAL 9010 (Pure white), 5 коморни со средишен дихдунг, топлинска изолација за целиот прозорец  U≤1.8 W/m²K, надворешен слој од високо квалитетен премаз, звучна изолација  без челично армирање до Rwp=35 dB, застаклување сo термопан стакло 4+12+4,  заштита од провалување до класа на отпор 3, до класа на отпор 2 без челик, пропустливост на воздух 4 (EN 12207), заштита од поројни дождови 9А (ЕН 12208). Вратите да се со исполна од ПВЦ панел со д=2см. Производител и тип по избор на Инвеститорот \n(ѕидарска мерка)."]
["П1","Еднокрилен прозор"]
[null,"50/75","парче",1,null,{"$f":"D28*E28","v":0}]
["П2","Еднокрилен прозор"]
[null,"60/60","парче",1,null,{"$f":"D30*E30","v":0}]
["П3","Еднокрилен прозор"]
[null,"80/160","парче",1,null,{"$f":"D32*E32","v":0}]
["П4","Двокрилен прозор"]
[null,"150/135","парче",1,null,{"$f":"D34*E34","v":0}]
["П5","Двокрилен прозор"]
[null,"160/135","парче",1,null,{"$f":"D36*E36","v":0}]
["П6","Двокрилен прозор"]
[null,"160/140","парче",1,null,{"$f":"D38*E38","v":0}]
["В1","Двокрилна влезна врата (95+45), со квака и патент брава"]
[null,"140/220","парче",1,null,{"$f":"D40*E40","v":0}]
[null,"Вкупно СТОЛАРСКИ РАБОТИ: ",null,null,null,{"$f":"SUM(F27:F40)","v":0}]
[]
[3,"ФАСАДЕРСКИ  РАБОТИ"]
[3.1,"Изработка на шпалетна со декоративен минерален фасаден малтер и фасадна боја","m`",{"$f":"SUM(B45)","v":33.100000000000009},0,{"$f":"SUM(D44*E44)","v":0}]
[null,{"$f":"2*(0.5+0.75)+2*(0.6+0.6)+2*(0.8+1.6)+2*(1.5+1.35)+2*(1.6+1.35)+2*(1.6+1.4)+(2*2.2+1.4)","v":33.100000000000009}]
[null,"Вкупно ФАСАДЕРСКИ РАБОТИ: ",null,null,null,{"$f":"SUM(F44:F45)","v":0}]
[]
[4,"РАЗНИ РАБОТИ"]
[4.0999999999999996,"Изработка и местење на опшивка на прозорски окапник од поцинкуван пластифициран апкантован челичен лим д=0.55мм, во светло сива боја според RAL 9002 (Grey white),  РШ 30, поставени на метален флах за нивелирање на пад. ","m'",{"$f":"SUM(B50)","v":6.6000000000000005},0,{"$f":"D49*E49","v":0}]
[null,{"$f":"0.5+0.6+0.8+1.5+2*1.6","v":6.6000000000000005}]
[4.2,"Изработка и монтажа на внатрешен прозорски банак од ПВЦ, ш-15 см, во бела боја според RAL 9010 (pure white)","m'",{"$f":"SUM(B52)","v":6.6000000000000005},0,0]
[null,{"$f":"0.5+0.6+0.8+1.5+2*1.6","v":6.6000000000000005}]
[4.3,"Завршно глетување и молерисување на внатрешна шпалетна околу новопоставени  прозори и врати, заедно со метална аголна лајсна.","m'",{"$f":"SUM(B54)","v":33.100000000000009},0,0]
[null,{"$f":"2*(0.5+0.75)+2*(0.6+0.6)+2*(0.8+1.6)+2*(1.5+1.35)+2*(1.6+1.35)+2*(1.6+1.4)+(2*2.2+1.4)","v":33.100000000000009}]
[4.4000000000000004,"Изработка и монтажа на праг кај влезна врата, од мермер со д-3см, со обработени ивици, полиран, во бела боја, дим.140 см\nЗемање на мерка на лице место.","парче",1,0,{"$f":"D55*E55","v":0}]
[null,"Вкупно РАЗНИ РАБОТИ: ",null,null,null,{"$f":"SUM(F49:F55)","v":0}]
[]
[null,"Р Е К А П И Т У Л А Р"]
[]
[1,"ПОДГОТВИТЕЛНИ РАБОТИ",null,null,null,{"$f":"SUM(F23)","v":0}]
[2,"СТОЛАРСКИ РАБОТИ",null,null,null,{"$f":"SUM(F41)","v":0}]
[3,"ФАСАДЕРСКИ РАБОТИ",null,null,null,{"$f":"SUM(F46)","v":0}]
[4,"РАЗНИ РАБОТИ",null,null,null,{"$f":"SUM(F56)","v":0}]
[]
[null,"СЕ ВКУПНО",null,null,null,{"$f":"SUM(F60:F63)","v":0}]

{"sheet":"37-68","index":15,"n_rows":63,"n_cols":6,"rows_kept":63,"cut":false,"hidden":false,"merged":[[29,0,30,0],[25,0,26,0],[0,1,0,4],[1,1,1,5],[5,2,5,5],[8,0,9,0],[10,0,11,0],[6,0,7,0],[12,0,13,0],[14,0,15,0],[16,0,17,0],[18,0,19,0],[27,0,28,0],[31,0,32,0],[33,0,34,0],[35,0,36,0],[37,0,38,0],[59,1,59,2]]}
[null,"ПРЕДМЕР - ПРЕСМЕТКА"]
[null,"Градежни и градежно занатски работи за инвестиционо тековно одржување со имплементација за мерки за енергетска ефикасностна  индивидуален станбен објект на ул. Тодор Чангов 1 бр. 6"]
["Ред. бр.","Опис на работа","Мера","Количина","Единечна цена","Вкупна цена"]
[1,2,3,4,5,6]
[1,"ПОДГОТВИТЕЛНИ РАБОТИ"]
[1.1000000000000001,"Внимателна демонтажа на дрвен прозор, застаклен со единечно стакло, комлет со окапница, потпрозорска даска, заедно со пренос и складирање на материјалот надвор од објектот или на локација предвидена од Надзорниот орган."]
["П1","Еднокрилен прозор"]
[null,"60/70","парче",1,null,{"$f":"D8*E8","v":0}]
["П2","Еднокрилен прозор"]
[null,"75/85","парче",1,null,{"$f":"D10*E10","v":0}]
["П3","Двокрилен прозор"]
[null,"105/112","парче",1,null,{"$f":"D12*E12","v":0}]
["П4","Двокрилен прозор"]
[null,"120/125","парче",1,null,{"$f":"D14*E14","v":0}]
["П5","Двокрилен прозор"]
[null,"120/140","парче",1,null,{"$f":"D16*E16","v":0}]
["П6","Трокрилен прозор"]
[null,"160/120","парче",1,null,{"$f":"D18*E18","v":0}]
["П7","Еднокрилна балконска врата со двокрилен прозор"]
[null,"80/240 + 130/150","парче",1,null,{"$f":"D20*E20","v":0}]
[1.2,"Внимателна демонтажа на ПВЦ ролетна со надворешна кутија заедно со пренос и складирање на материјалот надвор од објектот или на локација предвидена од Надзорниот орган. (за повторна монтажа)","парче",5,null,{"$f":"D21*E21","v":0}]
[null,"Вкупно ПОДГОТВИТЕЛНИ РАБОТИ",null,null,null,{"$f":"SUM(F6:F21)","v":0}]
[]
[2," СТОЛАРСКИ РАБОТИ"]
[2.1,"Земање на мерки на лице место, изработка, транспорт и монтажа на фасадни ПВЦ прозори и врати, во бела боја RAL 9010 (Pure white), 5 коморни со средишен дихдунг, топлинска изолација за целиот прозорец  U≤1.8 W/m²K, надворешен слој од високо квалитетен премаз, звучна изолација  без челично армирање до Rwp=35 dB, застаклување сo термопан стакло 4+12+4,  заштита од провалување до класа на отпор 3, до класа на отпор 2 без челик, пропустливост на воздух 4 (EN 12207), заштита од поројни дождови 9А (ЕН 12208). Производител и тип по избор на Инвеститорот. (ѕидарска мерка)"]
["П1","Еднокрилен прозор"]
[null,"60/70","парче",1,null,{"$f":"D27*E27","v":0}]
["П2","Еднокрилен прозор"]
[null,"75/85","парче",1,null,{"$f":"D29*E29","v":0}]
["П3","Двокрилен прозор"]
[null,"105/112","парче",1,null,{"$f":"D31*E31","v":0}]
["П4","Двокрилен прозор"]
[null,"120/125","парче",1,null,{"$f":"D33*E33","v":0}]
["П5","Двокрилен прозор"]
[null,"120/140","парче",1,null,{"$f":"D35*E35","v":0}]
["П6","Двокрилен прозор"]
[null,"160/120","парче",1,null,{"$f":"D37*E37","v":0}]
["П7","Еднокрилна балконска врата со двокрилен прозор"]
[null,"80/240 + 130/150","парче",1,null,{"$f":"D39*E39","v":0}]
[null,"Вкупно СТОЛАРСКИ РАБОТИ: ",null,null,null,{"$f":"SUM(F26:F39)","v":0}]
[]
[3,"ФАСАДЕРСКИ  РАБОТИ"]
[3.1,"Изработка на шпалетна со декоративен минерален фасаден малтер и фасадна боја","m`",{"$f":"SUM(B44)","v":25.227},0,{"$f":"SUM(D43*E43)","v":0}]
[null,{"$f":"2*(0.6*0.7)+2*(0.75*0.85)+2*(1.05*1.12)+2*(1.2*1.25)+2*(1.2*1.4)+2*(1.6*1.2)+2*(2.2*2.4)","v":25.227}]
[null,"Вкупно ФАСАДЕРСКИ РАБОТИ: ",null,null,null,{"$f":"SUM(F43:F44)","v":0}]
[]
[4,"РАЗНИ РАБОТИ"]
[4.0999999999999996,"Изработка и местење на опшивка на прозорски окапник од поцинкуван пластифициран апкантован челичен лим д=0.55мм, во светло сива боја според RAL 9002 (Grey white),  РШ 30, поставени на метален флах за нивелирање на пад. ","m'",{"$f":"SUM(B49)","v":7.7},0,{"$f":"D48*E48","v":0}]
[null,{"$f":"0.6+0.75+1.05+1.2+1.2+1.6+1.3","v":7.7}]
[4.2,"Изработка и монтажа на внатрешен прозорски банак од ПВЦ, ш-15 см, во бела боја според RAL 9010 (pure white)","m'",{"$f":"SUM(B51)","v":7.7},0,0]
[null,{"$f":"0.6+0.75+1.05+1.2+1.2+1.6+1.3","v":7.7}]
[4.3,"Завршно глетување и молерисување на внатрешна шпалетна околу новопоставени  прозори и врати, заедно со метална аголна лајсна.","m'",{"$f":"SUM(B53)","v":25.227},0,0]
[null,{"$f":"2*(0.6*0.7)+2*(0.75*0.85)+2*(1.05*1.12)+2*(1.2*1.25)+2*(1.2*1.4)+2*(1.6*1.2)+2*(2.2*2.4)","v":25.227}]
[null,"Вкупно РАЗНИ РАБОТИ: ",null,null,null,{"$f":"SUM(F48:F53)","v":0}]
[]
[null,"Р Е К А П И Т У Л А Р"]
[]
[1,"ПОДГОТВИТЕЛНИ РАБОТИ",null,null,null,{"$f":"SUM(F22)","v":0}]
[2,"СТОЛАРСКИ РАБОТИ",null,null,null,{"$f":"SUM(F40)","v":0}]
[3,"ФАСАДЕРСКИ РАБОТИ",null,null,null,{"$f":"SUM(F45)","v":0}]
[4,"РАЗНИ РАБОТИ",null,null,null,{"$f":"SUM(F54)","v":0}]
[]
[null,"СЕ ВКУПНО",null,null,null,{"$f":"SUM(F58:F61)","v":0}]

{"sheet":"38-69","index":16,"n_rows":61,"n_cols":6,"rows_kept":61,"cut":false,"hidden":false,"merged":[[57,1,57,2],[0,1,0,4],[1,1,1,5],[5,2,5,5],[6,0,7,0],[8,0,9,0],[10,0,11,0],[12,0,13,0],[30,0,31,0],[32,0,33,0],[24,0,25,0],[26,0,27,0],[28,0,29,0],[34,0,35,0],[14,0,15,0]]}
[null,"ПРЕДМЕР - ПРЕСМЕТКА"]
[null,"Градежни и градежно занатски работи за инвестиционо тековно одржување со имплементација за мерки за енергетска ефикасностна  индивидуален станбен објект на ул. Ѓорѓи Андреевиќ Кун бр 49б"]
["Ред. бр.","Опис на работа","Мера","Количина","Единечна цена","Вкупна цена"]
[1,2,3,4,5,6]
[1,"ПОДГОТВИТЕЛНИ РАБОТИ"]
[1.1000000000000001,"Внимателна демонтажа на дрвен прозор, застаклен со единечно стакло, комлет со окапница, потпрозорска даска, заедно со пренос и складирање на материјалот надвор од објектот или на локација предвидена од Надзорниот орган."]
["П1","Еднокрилен прозор"]
[null,"112/65","парче",1,null,{"$f":"D8*E8","v":0}]
["П2","Еднокрилен прозор"]
[null,"110/175","парче",1,null,{"$f":"D10*E10","v":0}]
["П3","Еднокрилен прозор"]
[null,"115/152","парче",1,null,{"$f":"D12*E12","v":0}]
["П4","Двокрилен прозор"]
[null,"170/150","парче",2,null,{"$f":"D14*E14","v":0}]
["П5","Еднокрилна балконска врата"]
[null,"81/216","парче",1,null,{"$f":"D16*E16","v":0}]
[1.2,"Внимателна демонтажа на влезна врата комплет со каса и праг заедно со пренос и складирање на материјалот надвор од објектот или на локација предвидена од Надзорниот орган."]
["В1","Еднокрилна влезна врата"]
[null,"105/225","парче",1,null,{"$f":"D19*E19","v":0}]
[1.3,"Внимателна демонтажа на ПВЦ ролетна со надворешна кутија заедно со пренос и складирање на материјалот надвор од објектот или на локација предвидена од Надзорниот орган. (за повторна монтажа)","парче",4,null,{"$f":"D20*E20","v":0}]
[null,"Вкупно ПОДГОТВИТЕЛНИ РАБОТИ",null,null,null,{"$f":"SUM(F6:F20)","v":0}]
[]
[2," СТОЛАРСКИ РАБОТИ"]
[2.1,"Земање на мерки на лице место, изработка, транспорт и монтажа на фасадни ПВЦ прозори и врати, во бела боја RAL 9010 (Pure white), 5 коморни со средишен дихдунг, топлинска изолација за целиот прозорец  U≤1.8 W/m²K, надворешен слој од високо квалитетен премаз, звучна изолација  без челично армирање до Rwp=35 dB, застаклување сo термопан стакло 4+12+4,  заштита од провалување до класа на отпор 3, до класа на отпор 2 без челик, пропустливост на воздух 4 (EN 12207), заштита од поројни дождови 9А (ЕН 12208). Вратите да се со исполна од ПВЦ панел со д=2см. Производител и тип по избор на Инвеститорот \n(ѕидарска мерка)."]
["П1","Еднокрилен прозор"]
[null,"112/65","парче",1,null,{"$f":"D26*E26","v":0}]
["П2","Еднокрилен прозор"]
[null,"110/175","парче",1,null,{"$f":"D28*E28","v":0}]
["П3","Еднокрилен прозор"]
[null,"115/152","парче",1,null,{"$f":"D30*E30","v":0}]
["П4","Двокрилен прозор"]
[null,"170/150","парче",2,null,{"$f":"D32*E32","v":0}]
["П5","Еднокрилна балконска врата"]
[null,"81/216","парче",1,null,{"$f":"D34*E34","v":0}]
["В1","Еднокрилна влезна врата, со квака и патент брава"]
[null,"105/225","парче",1,null,{"$f":"D36*E36","v":0}]
[null,"Вкупно СТОЛАРСКИ РАБОТИ: ",null,null,null,{"$f":"SUM(F25:F36)","v":0}]
[]
[3,"ФАСАДЕРСКИ  РАБОТИ"]
[3.1,"Изработка на дрвена шпалетна, фино обработена и премачкана со бела боја за дрво и водоотпорен безбоен лак за заштита на дрвото.","m`",{"$f":"SUM(B41)","v":32.65},0,{"$f":"SUM(D40*E40)","v":0}]
[null,{"$f":"2*(1.12+0.65)+2*(1.1+1.75)+2*(1.15+1.5)+4*(1.7+1.5)+(0.81+2*2.25)","v":32.65}]
[null,"Вкупно ФАСАДЕРСКИ РАБОТИ: ",null,null,null,{"$f":"SUM(F40:F41)","v":0}]
[]
[4,"РАЗНИ РАБОТИ"]
[4.0999999999999996,"Изработка и местење на опшивка на прозорски окапник од поцинкуван пластифициран апкантован челичен лим д=0.55мм, во светло сива боја според RAL 9002 (Grey white),  РШ 30, поставени на метален флах за нивелирање на пад. ","m'",{"$f":"SUM(B46)","v":7.5699999999999994},0,{"$f":"D45*E45","v":0}]
[null,{"$f":"1.12+1.1+1.15+2*1.7+0.8","v":7.5699999999999994}]
[4.2,"Изработка и монтажа на внатрешен прозорски банак од ПВЦ, ш-15 см, во бела боја според RAL 9010 (pure white)","m'",{"$f":"SUM(B48)","v":6.77},0,0]
[null,{"$f":"1.12+1.1+1.15+2*1.7","v":6.77}]
[4.3,"Завршно глетување и молерисување на внатрешна шпалетна околу новопоставени  прозори и врати, заедно со метална аголна лајсна.","m'",{"$f":"SUM(B50)","v":32.65},0,0]
[null,{"$f":"2*(1.12+0.65)+2*(1.1+1.75)+2*(1.15+1.5)+4*(1.7+1.5)+(0.81+2*2.25)","v":32.65}]
[4.4000000000000004,"Изработка и монтажа на праг кај влезна врата, од мермер со д-3см, со обработени ивици, полиран, во бела боја, дим.100 см\nЗемање на мерка на лице место.","парче",1,0,{"$f":"D51*E51","v":0}]
[null,"Вкупно РАЗНИ РАБОТИ: ",null,null,null,{"$f":"SUM(F45:F51)","v":0}]
[]
[null,"Р Е К А П И Т У Л А Р"]
[]
[1,"ПОДГОТВИТЕЛНИ РАБОТИ",null,null,null,{"$f":"SUM(F21)","v":0}]
[2,"СТОЛАРСКИ РАБОТИ",null,null,null,{"$f":"SUM(F37)","v":0}]
[3,"ФАСАДЕРСКИ РАБОТИ",null,null,null,{"$f":"SUM(F42)","v":0}]
[4,"РАЗНИ РАБОТИ",null,null,null,{"$f":"SUM(F52)","v":0}]
[]
[null,"СЕ ВКУПНО",null,null,null,{"$f":"SUM(F56:F59)","v":0}]

{"sheet":"39-76","index":17,"n_rows":57,"n_cols":6,"rows_kept":57,"cut":false,"hidden":false,"merged":[[24,0,25,0],[26,0,27,0],[53,1,53,2],[0,1,0,4],[1,1,1,5],[13,0,14,0],[15,0,16,0],[22,0,23,0],[5,2,5,5],[8,0,9,0],[10,0,11,0],[28,0,29,0],[30,0,31,0],[6,0,7,0]]}
[null,"ПРЕДМЕР - ПРЕСМЕТКА"]
[null,"Градежни и градежно занатски работи за инвестиционо тековно одржување со имплементација за мерки за енергетска ефикасностна  индивидуален станбен објект на ул. Бул. 12-та Македонска Бригада бр. 55б"]
["Ред. бр.","Опис на работа","Мера","Количина","Единечна цена","Вкупна цена"]
[1,2,3,4,5,6]
[1,"ПОДГОТВИТЕЛНИ РАБОТИ"]
[1.1000000000000001,"Внимателна демонтажа на дрвен прозор, застаклен со единечно стакло, комлет со окапница, потпрозорска даска, заедно со пренос и складирање на материјалот надвор од објектот или на локација предвидена од Надзорниот орган."]
["П1","Еднокрилен прозор"]
[null,"70/137","парче",2,null,{"$f":"D8*E8","v":0}]
["П2","Еднокрилен прозор"]
[null,"80/137","парче",2,null,{"$f":"D10*E10","v":0}]
["П3","Еднокрилен прозор"]
[null,"98/137","парче",2,null,{"$f":"D12*E12","v":0}]
[1.2,"Внимателна демонтажа на влезна врата комплет со каса и праг заедно со пренос и складирање на материјалот надвор од објектот или на локација предвидена од Надзорниот орган."]
["В1","Еднокрилна влезна врата"]
[null,"100/205","парче",1,null,{"$f":"D15*E15","v":0}]
["В2","Еднокрилна влезна врата"]
[null,"110/200","парче",1,null,{"$f":"D17*E17","v":0}]
[1.3,"Внимателна демонтажа на ПВЦ ролетна со надворешна кутија заедно со пренос и складирање на материјалот надвор од објектот или на локација предвидена од Надзорниот орган. (за повторна монтажа)","парче",2,null,{"$f":"D18*E18","v":0}]
[null,"Вкупно ПОДГОТВИТЕЛНИ РАБОТИ",null,null,null,{"$f":"SUM(F6:F18)","v":0}]
[]
[2," СТОЛАРСКИ РАБОТИ"]
[2.1,"Земање на мерки на лице место, изработка, транспорт и монтажа на фасадни ПВЦ прозори и врати, во бела боја RAL 9010 (Pure white), 5 коморни со средишен дихдунг, топлинска изолација за целиот прозорец  U≤1.8 W/m²K, надворешен слој од високо квалитетен премаз, звучна изолација  без челично армирање до Rwp=35 dB, застаклување сo термопан стакло 4+12+4,  заштита од провалување до класа на отпор 3, до класа на отпор 2 без челик, пропустливост на воздух 4 (EN 12207), заштита од поројни дождови 9А (ЕН 12208). Вратите да се со исполна од ПВЦ панел со д=2см. Производител и тип по избор на Инвеститорот \n(ѕидарска мерка)."]
["П1","Еднокрилен прозор"]
[null,"70/137","парче",2,null,{"$f":"D24*E24","v":0}]
["П2","Еднокрилен прозор"]
[null,"80/137","парче",2,null,{"$f":"D26*E26","v":0}]
["П3","Еднокрилен прозор"]
[null,"98/137","парче",2,null,{"$f":"D28*E28","v":0}]
["В1","Еднокрилна влезна врата, со квака и патент брава"]
[null,"100/205","парче",1,null,{"$f":"D30*E30","v":0}]
["В2","Еднокрилна влезна врата, со квака и патент брава"]
[null,"110/200","парче",1,null,{"$f":"D32*E32","v":0}]
[null,"Вкупно СТОЛАРСКИ РАБОТИ: ",null,null,null,{"$f":"SUM(F23:F32)","v":0}]
[]
[3,"ФАСАДЕРСКИ  РАБОТИ"]
[3.1,"Изработка на шпалетна со декоративен минерален фасаден малтер и фасадна боја","m`",{"$f":"SUM(B37)","v":38.660000000000004},0,{"$f":"SUM(D36*E36)","v":0}]
[null,{"$f":"4*(0.7+1.37)+4*(0.8+1.37)+4*(0.98+1.37)+2*(2.05+1)+2*(2+1.1)","v":38.660000000000004}]
[null,"Вкупно ФАСАДЕРСКИ РАБОТИ: ",null,null,null,{"$f":"SUM(F36:F37)","v":0}]
[]
[4,"РАЗНИ РАБОТИ"]
[4.0999999999999996,"Изработка и местење на опшивка на прозорски окапник од поцинкуван пластифициран апкантован челичен лим д=0.55мм, во светло сива боја според RAL 9002 (Grey white),  РШ 30, поставени на метален флах за нивелирање на пад. ","m'",{"$f":"SUM(B42)","v":4.96},0,{"$f":"D41*E41","v":0}]
[null,{"$f":"2*0.7+2*0.8+2*0.98","v":4.96}]
[4.2,"Изработка и монтажа на внатрешен прозорски банак од ПВЦ, ш-15 см, во бела боја според RAL 9010 (pure white)","m'",{"$f":"SUM(B44)","v":4.96},0,0]
[null,{"$f":"2*0.7+2*0.8+2*0.98","v":4.96}]
[4.3,"Завршно глетување и молерисување на внатрешна шпалетна околу новопоставени  прозори и врати, заедно со метална аголна лајсна.","m'",{"$f":"SUM(B46)","v":38.660000000000004},0,0]
[null,{"$f":"4*(0.7+1.37)+4*(0.8+1.37)+4*(0.98+1.37)+2*(2.05+1)+2*(2+1.1)","v":38.660000000000004}]
[4.4000000000000004,"Изработка и монтажа на праг кај влезна врата, од мермер со д-3см, со обработени ивици, полиран, во бела боја, дим.100 и 110 см .Земање на мерка на лице место.","парче",2,0,{"$f":"D47*E47","v":0}]
[null,"Вкупно РАЗНИ РАБОТИ: ",null,null,null,{"$f":"SUM(F41:F47)","v":0}]
[]
[null,"Р Е К А П И Т У Л А Р"]
[]
[1,"ПОДГОТВИТЕЛНИ РАБОТИ",null,null,null,{"$f":"SUM(F19)","v":0}]
[2,"СТОЛАРСКИ РАБОТИ",null,null,null,{"$f":"SUM(F33)","v":0}]
[3,"ФАСАДЕРСКИ РАБОТИ",null,null,null,{"$f":"SUM(F38)","v":0}]
[4,"РАЗНИ РАБОТИ",null,null,null,{"$f":"SUM(F48)","v":0}]
[]
[null,"СЕ ВКУПНО",null,null,null,{"$f":"SUM(F52:F55)","v":0}]

{"sheet":"40-77","index":18,"n_rows":59,"n_cols":6,"rows_kept":59,"cut":false,"hidden":false,"merged":[[10,0,11,0],[12,0,13,0],[14,0,15,0],[16,0,17,0],[23,0,24,0],[0,1,0,4],[1,1,1,5],[5,2,5,5],[6,0,7,0],[8,0,9,0],[31,0,32,0],[33,0,34,0],[55,1,55,2],[25,0,26,0],[27,0,28,0],[29,0,30,0]]}
[null,"ПРЕДМЕР - ПРЕСМЕТКА"]
[null,"Градежни и градежно занатски работи за инвестиционо тековно одржување со имплементација за мерки за енергетска ефикасностна  индивидуален станбен објект на ул. Божин Николов Силни бр. 69"]
["Ред. бр.","Опис на работа","Мера","Количина","Единечна цена","Вкупна цена"]
[1,2,3,4,5,6]
[1,"ПОДГОТВИТЕЛНИ РАБОТИ"]
[1.1000000000000001,"Внимателна демонтажа на дрвен прозор, застаклен со единечно стакло, комлет со окапница, потпрозорска даска, заедно со пренос и складирање на материјалот надвор од објектот или на локација предвидена од Надзорниот орган."]
["П1","Еднокрилен прозор"]
[null,"68/60","парче",1,null,{"$f":"D8*E8","v":0}]
["П2","Двокрилен прозор"]
[null,"105/125","парче",1,null,{"$f":"D10*E10","v":0}]
["П3","Еднокрилен прозор"]
[null,"115/135","парче",2,null,{"$f":"D12*E12","v":0}]
["П4","Еднокрилен прозор"]
[null,"140/135","парче",3,null,{"$f":"D14*E14","v":0}]
["П5","Трокрилен прозор"]
[null,"155/130","парче",1,null,{"$f":"D16*E16","v":0}]
["П6","Еднокрилна балконска врата со еднокрилен прозор"]
[null,"77/215 + 118/138","парче",1,null,{"$f":"D18*E18","v":0}]
[1.2,"Внимателна демонтажа на ПВЦ ролетна со надворешна кутија заедно со пренос и складирање на материјалот надвор од објектот или на локација предвидена од Надзорниот орган. (за повторна монтажа)","парче",8,null,{"$f":"D19*E19","v":0}]
[null,"Вкупно ПОДГОТВИТЕЛНИ РАБОТИ",null,null,null,{"$f":"SUM(F6:F19)","v":0}]
[]
[2," СТОЛАРСКИ РАБОТИ"]
[2.1,"Земање на мерки на лице место, изработка, транспорт и монтажа на фасадни ПВЦ прозори и врати, во бела боја RAL 9010 (Pure white), 5 коморни со средишен дихдунг, топлинска изолација за целиот прозорец  U≤1.8 W/m²K, надворешен слој од високо квалитетен премаз, звучна изолација  без челично армирање до Rwp=35 dB, застаклување сo термопан стакло 4+12+4,  заштита од провалување до класа на отпор 3, до класа на отпор 2 без челик, пропустливост на воздух 4 (EN 12207), заштита од поројни дождови 9А (ЕН 12208). Производител и тип по избор на Инвеститорот. (ѕидарска мерка)."]
["П1","Еднокрилен прозор"]
[null,"68/60","парче",1,null,{"$f":"D25*E25","v":0}]
["П2","Двокрилен прозор"]
[null,"105/125","парче",1,null,{"$f":"D27*E27","v":0}]
["П3","Еднокрилен прозор"]
[null,"115/135","парче",2,null,{"$f":"D29*E29","v":0}]
["П4","Еднокрилен прозор"]
[null,"140/135","парче",3,null,{"$f":"D31*E31","v":0}]
["П5","Двокрилен прозор"]
[null,"155/130","парче",1,null,{"$f":"D33*E33","v":0}]
["П6","Еднокрилна балконска врата со еднокрилен прозор"]
[null,"77/215 + 118/138","парче",1,null,{"$f":"D35*E35","v":0}]
[null,"Вкупно СТОЛАРСКИ РАБОТИ: ",null,null,null,{"$f":"SUM(F24:F35)","v":0}]
[]
[3,"ФАСАДЕРСКИ  РАБОТИ"]
[3.1,"Изработка на шпалетна со декоративен минерален фасаден малтер и фасадна боја","m`",{"$f":"SUM(B40)","v":47.56},0,{"$f":"SUM(D39*E39)","v":0}]
[null,{"$f":"2*(0.68+0.6)+2*(1.05+1.25)+4*(1.15+1.35)+6*(1.4+1.35)+2*(1.55+1.3)+2*(1.95+2.15)","v":47.56}]
[null,"Вкупно ФАСАДЕРСКИ РАБОТИ: ",null,null,null,{"$f":"SUM(F39:F40)","v":0}]
[]
[4,"РАЗНИ РАБОТИ"]
[4.0999999999999996,"Изработка и местење на опшивка на прозорски окапник од поцинкуван пластифициран апкантован челичен лим д=0.55мм, во светло сива боја според RAL 9002 (Grey white),  РШ 30, поставени на метален флах за нивелирање на пад. ","m'",{"$f":"SUM(B45)","v":10.959999999999999},0,{"$f":"D44*E44","v":0}]
[null,{"$f":"0.68+1.05+2*1.15+3*1.4+1.55+1.18","v":10.959999999999999}]
[4.2,"Изработка и монтажа на внатрешен прозорски банак од ПВЦ, ш-15 см, во бела боја според RAL 9010 (pure white)","m'",{"$f":"SUM(B47)","v":10.959999999999999},0,0]
[null,{"$f":"0.68+1.05+2*1.15+3*1.4+1.55+1.18","v":10.959999999999999}]
[4.3,"Завршно глетување и молерисување на внатрешна шпалетна околу новопоставени  прозори и врати, заедно со метална аголна лајсна.","m'",{"$f":"SUM(B49)","v":47.56},0,0]
[null,{"$f":"2*(0.68+0.6)+2*(1.05+1.25)+4*(1.15+1.35)+6*(1.4+1.35)+2*(1.55+1.3)+2*(1.95+2.15)","v":47.56}]
[null,"Вкупно РАЗНИ РАБОТИ: ",null,null,null,{"$f":"SUM(F44:F49)","v":0}]
[]
[null,"Р Е К А П И Т У Л А Р"]
[]
[1,"ПОДГОТВИТЕЛНИ РАБОТИ",null,null,null,{"$f":"SUM(F20)","v":0}]
[2,"СТОЛАРСКИ РАБОТИ",null,null,null,{"$f":"SUM(F36)","v":0}]
[3,"ФАСАДЕРСКИ РАБОТИ",null,null,null,{"$f":"SUM(F41)","v":0}]
[4,"РАЗНИ РАБОТИ",null,null,null,{"$f":"SUM(F50)","v":0}]
[]
[null,"СЕ ВКУПНО",null,null,null,{"$f":"SUM(F54:F57)","v":0}]

{"sheet":"41-78","index":19,"n_rows":61,"n_cols":6,"rows_kept":61,"cut":false,"hidden":false,"merged":[[57,1,57,2],[12,0,13,0],[14,0,15,0],[0,1,0,4],[1,1,1,5],[5,2,5,5],[6,0,7,0],[17,0,18,0],[24,0,25,0],[8,0,9,0],[10,0,11,0],[26,0,27,0],[28,0,29,0],[30,0,31,0],[32,0,33,0],[34,0,35,0]]}
[null,"ПРЕДМЕР - ПРЕСМЕТКА"]
[null,"Градежни и градежно занатски работи за инвестиционо тековно одржување со имплементација за мерки за енергетска ефикасностна  индивидуален станбен објект на ул. Тодор Чангов 48 бр. 58"]
["Ред. бр.","Опис на работа","Мера","Количина","Единечна цена","Вкупна цена"]
[1,2,3,4,5,6]
[1,"ПОДГОТВИТЕЛНИ РАБОТИ"]
[1.1000000000000001,"Внимателна демонтажа на дрвен прозор, застаклен со единечно стакло, комлет со окапница, потпрозорска даска, заедно со пренос и складирање на материјалот надвор од објектот или на локација предвидена од Надзорниот орган."]
["П1","Еднокрилен прозор"]
[null,"60/70","парче",1,null,{"$f":"D8*E8","v":0}]
["П2","Двокрилен прозор"]
[null,"90/115","парче",1,null,{"$f":"D10*E10","v":0}]
["П3","Двокрилен прозор"]
[null,"120/140","парче",1,null,{"$f":"D12*E12","v":0}]
["П4","Трокрилен прозор"]
[null,"160/145","парче",3,null,{"$f":"D14*E14","v":0}]
["П5","Двокрилен прозор со еднокрилна врата"]
[null,"120/145+75/230","парче",1,null,{"$f":"D16*E16","v":0}]
[1.2,"Внимателна демонтажа на влезна врата комплет со каса и праг заедно со пренос и складирање на материјалот надвор од објектот или на локација предвидена од Надзорниот орган."]
["В1","Еднокрилна влезна врата"]
[null,"100/205","парче",1,null,{"$f":"D19*E19","v":0}]
[1.3,"Внимателна демонтажа на ПВЦ ролетна со надворешна кутија заедно со пренос и складирање на материјалот надвор од објектот или на локација предвидена од Надзорниот орган. (за повторна монтажа)","парче",7,null,{"$f":"D20*E20","v":0}]
[null,"Вкупно ПОДГОТВИТЕЛНИ РАБОТИ",null,null,null,{"$f":"SUM(F6:F20)","v":0}]
[]
[2," СТОЛАРСКИ РАБОТИ"]
[2.1,"Земање на мерки на лице место, изработка, транспорт и монтажа на фасадни ПВЦ прозори и врати, во бела боја RAL 9010 (Pure white), 5 коморни со средишен дихдунг, топлинска изолација за целиот прозорец  U≤1.8 W/m²K, надворешен слој од високо квалитетен премаз, звучна изолација  без челично армирање до Rwp=35 dB, застаклување сo термопан стакло 4+12+4,  заштита од провалување до класа на отпор 3, до класа на отпор 2 без челик, пропустливост на воздух 4 (EN 12207), заштита од поројни дождови 9А (ЕН 12208). Вратите да се со исполна од ПВЦ панел со д=2см. Производител и тип по избор на Инвеститорот \n(ѕидарска мерка)."]
["П1","Еднокрилен прозор"]
[null,"60/70","парче",1,null,{"$f":"D26*E26","v":0}]
["П2","Двокрилен прозор"]
[null,"90/115","парче",1,null,{"$f":"D28*E28","v":0}]
["П3","Двокрилен прозор"]
[null,"120/140","парче",1,null,{"$f":"D30*E30","v":0}]
["П4","Двокрилен прозор"]
[null,"160/145","парче",3,null,{"$f":"D32*E32","v":0}]
["П5","Двокрилен прозор со еднокрилна балконска врата"]
[null,"120/145+75/230","парче",1,null,{"$f":"D34*E34","v":0}]
["В1","Еднокрилна влезна врата, со квака и патент брава"]
[null,"100/205","парче",1,null,{"$f":"D36*E36","v":0}]
[null,"Вкупно СТОЛАРСКИ РАБОТИ: ",null,null,null,{"$f":"SUM(F25:F36)","v":0}]
[]
[3,"ФАСАДЕРСКИ  РАБОТИ"]
[3.1,"Изработка на шпалетна со декоративен минерален фасаден малтер и фасадна боја","m`",{"$f":"SUM(B41)","v":38.699999999999996},0,{"$f":"SUM(D40*E40)","v":0}]
[null,{"$f":"2*(0.6+0.7)+2*(0.9+1.15)+2*(1.2+1.4)+6*(1.6+1.45)+2*(1.95+2.3)","v":38.699999999999996}]
[null,"Вкупно ФАСАДЕРСКИ РАБОТИ: ",null,null,null,{"$f":"SUM(F40:F41)","v":0}]
[]
[4,"РАЗНИ РАБОТИ"]
[4.0999999999999996,"Изработка и местење на опшивка на прозорски окапник од поцинкуван пластифициран апкантован челичен лим д=0.55мм, во светло сива боја според RAL 9002 (Grey white),  РШ 30, поставени на метален флах за нивелирање на пад. ","m'",{"$f":"SUM(B46)","v":8.7000000000000011},0,{"$f":"D45*E45","v":0}]
[null,{"$f":"0.6+0.9+1.2+3*1.6+1.2","v":8.7000000000000011}]
[4.2,"Изработка и монтажа на внатрешен прозорски банак од ПВЦ, ш-15 см, во бела боја според RAL 9010 (pure white)","m'",{"$f":"SUM(B48)","v":8.1},0,0]
[null,{"$f":"0.9+1.2+3*1.6+1.2","v":8.1}]
[4.3,"Завршно глетување и молерисување на внатрешна шпалетна околу новопоставени  прозори и врати, заедно со метална аголна лајсна.","m'",{"$f":"SUM(B50)","v":36.099999999999994},0,0]
[null,{"$f":"2*(0.9+1.15)+2*(1.2+1.4)+6*(1.6+1.45)+2*(1.95+2.3)","v":36.099999999999994}]
[4.4000000000000004,"Изработка и монтажа на праг кај влезна врата, од мермер со д-3см, со обработени ивици, полиран, во бела боја, дим.100 см\nЗемање на мерка на лице место.","парче",1,0,{"$f":"D51*E51","v":0}]
[null,"Вкупно РАЗНИ РАБОТИ: ",null,null,null,{"$f":"SUM(F45:F51)","v":0}]
[]
[null,"Р Е К А П И Т У Л А Р"]
[]
[1,"ПОДГОТВИТЕЛНИ РАБОТИ",null,null,null,{"$f":"F21","v":0}]
[2,"СТОЛАРСКИ РАБОТИ",null,null,null,{"$f":"F37","v":0}]
[3,"ФАСАДЕРСКИ РАБОТИ",null,null,null,{"$f":"F42","v":0}]
[4,"РАЗНИ РАБОТИ",null,null,null,{"$f":"F52","v":0}]
[]
[null,"СЕ ВКУПНО",null,null,null,{"$f":"SUM(F56:F59)","v":0}]

{"sheet":"42-79","index":20,"n_rows":61,"n_cols":6,"rows_kept":61,"cut":false,"hidden":false,"merged":[[24,0,25,0],[26,0,27,0],[0,1,0,4],[1,1,1,5],[5,2,5,5],[6,0,7,0],[8,0,9,0],[10,0,11,0],[14,0,15,0],[12,0,13,0],[17,0,18,0],[28,0,29,0],[30,0,31,0],[32,0,33,0],[34,0,35,0],[57,1,57,2]]}
[null,"ПРЕДМЕР - ПРЕСМЕТКА"]
[null,"Градежни и градежно занатски работи за инвестиционо тековно одржување со имплементација за мерки за енергетска ефикасностна  индивидуален станбен објект на ул. Божидар Рајковиќ бр. 3"]
["Ред. бр.","Опис на работа","Мера","Количина","Единечна цена","Вкупна цена"]
[1,2,3,4,5,6]
[1,"ПОДГОТВИТЕЛНИ РАБОТИ"]
[1.1000000000000001,"Внимателна демонтажа на дрвен прозор, застаклен со единечно стакло, комлет со окапница, потпрозорска даска, заедно со пренос и складирање на материјалот надвор од објектот или на локација предвидена од Надзорниот орган."]
["П1","Еднокрилен прозор"]
[null,"95/70","парче",1,null,{"$f":"D8*E8","v":0}]
["П2","Трокрилен прозор"]
[null,"156/130","парче",2,null,{"$f":"D10*E10","v":0}]
["П3","Трокрилен прозор"]
[null,"165/130","парче",1,null,{"$f":"D12*E12","v":0}]
["П4","Четирикрилен прозор"]
[null,"220/130","парче",1,null,{"$f":"D14*E14","v":0}]
["П5","Двокрилен прозор со еднокрилна врата"]
[null,"120/130+95/220","парче",1,null,{"$f":"D16*E16","v":0}]
[1.2,"Внимателна демонтажа на влезна врата комплет со каса и праг заедно со пренос и складирање на материјалот надвор од објектот или на локација предвидена од Надзорниот орган."]
["В1","Еднокрилна влезна врата"]
[null,"100/205","парче",1,null,{"$f":"D19*E19","v":0}]
[1.3,"Демонтажа на ПВЦ ролетна со надворешна кутија заедно со пренос и складирање на материјалот надвор од објектот или на локација предвидена од Надзорниот орган.","парче",5,null,{"$f":"D20*E20","v":0}]
[null,"Вкупно ПОДГОТВИТЕЛНИ РАБОТИ",null,null,null,{"$f":"SUM(F6:F20)","v":0}]
[]
[2," СТОЛАРСКИ РАБОТИ"]
[2.1,"Земање на мерки на лице место, изработка, транспорт и монтажа на фасадни ПВЦ прозори и врати, во бела боја RAL 9010 (Pure white), 5 коморни со средишен дихдунг, топлинска изолација за целиот прозорец  U≤1.8 W/m²K, надворешен слој од високо квалитетен премаз, звучна изолација  без челично армирање до Rwp=35 dB, застаклување сo термопан стакло 4+12+4,  заштита од провалување до класа на отпор 3, до класа на отпор 2 без челик, пропустливост на воздух 4 (EN 12207), заштита од поројни дождови 9А (ЕН 12208). Вратите да се со исполна од ПВЦ панел со д=2см. Производител и тип по избор на Инвеститорот \n(ѕидарска мерка)."]
["П1","Еднокрилен прозор"]
[null,"95/70","парче",1,null,{"$f":"D26*E26","v":0}]
["П2","Трокрилен прозор"]
[null,"156/130","парче",2,null,{"$f":"D28*E28","v":0}]
["П3","Трокрилен прозор"]
[null,"165/130","парче",1,null,{"$f":"D30*E30","v":0}]
["П4","Четирикрилен прозор"]
[null,"220/130","парче",1,null,{"$f":"D32*E32","v":0}]
["П5","Двокрилен прозор со еднокрилна балконска врата"]
[null,"120/130+95/220","парче",1,null,{"$f":"D34*E34","v":0}]
["В1","Еднокрилна влезна врата, со квака и патент брава"]
[null,"100/205","парче",1,null,{"$f":"D36*E36","v":0}]
[null,"Вкупно СТОЛАРСКИ РАБОТИ: ",null,null,null,{"$f":"SUM(F25:F36)","v":0}]
[]
[3,"ФАСАДЕРСКИ  РАБОТИ"]
[3.1,"Изработка на шпалетна со декоративен минерален фасаден малтер и фасадна боја","m`",{"$f":"SUM(B41)","v":40.49},0,{"$f":"SUM(D40*E40)","v":0}]
[null,{"$f":"(2*(0.95+0.7)+4*(1.56+1.3)+2*(1.65+1.3)+2*(2.2+1.3)+(0.9+1.2+1.3+2.15+2.2)+2*2.05+1)","v":40.49}]
[null,"Вкупно ФАСАДЕРСКИ РАБОТИ: ",null,null,null,{"$f":"SUM(F40:F41)","v":0}]
[]
[4,"РАЗНИ РАБОТИ"]
[4.0999999999999996,"Изработка и местење на опшивка на прозорски окапник од поцинкуван пластифициран апкантован челичен лим д=0.55мм, во светло сива боја според RAL 9002 (Grey white),  РШ 30, поставени на метален флах за нивелирање на пад. ","m'",{"$f":"SUM(B46)","v":9.120000000000001},0,{"$f":"D45*E45","v":0}]
[null,{"$f":"0.95+1.56+1.56+1.65+2.2+1.2","v":9.120000000000001}]
[4.2,"Изработка и монтажа на внатрешен прозорски банак од ПВЦ, ш-15 см, во бела боја според RAL 9010 (pure white)","m'",{"$f":"SUM(B48)","v":8.17},0,0]
[null,{"$f":"1.56+1.56+1.65+2.2+1.2","v":8.17}]
[4.3,"Завршно глетување и молерисување на внатрешна шпалетна околу новопоставени  прозори и врати, заедно со метална аголна лајсна.","m'",{"$f":"SUM(B50)","v":37.190000000000005},0,0]
[null,{"$f":"(4*(1.56+1.3)+2*(1.65+1.3)+2*(2.2+1.3)+(0.9+1.2+1.3+2.15+2.2)+2*2.05+1)","v":37.190000000000005}]
[4.4000000000000004,"Изработка и монтажа на праг кај влезна врата, од мермер со д-3см, со обработени ивици, полиран, во бела боја, дим.100 см\nЗемање на мерка на лице место.","парче",1,0,{"$f":"D51*E51","v":0}]
[null,"Вкупно РАЗНИ РАБОТИ: ",null,null,null,{"$f":"SUM(F45:F51)","v":0}]
[]
[null,"Р Е К А П И Т У Л А Р"]
[]
[1,"ПОДГОТВИТЕЛНИ РАБОТИ",null,null,null,{"$f":"SUM(F21)","v":0}]
[2,"СТОЛАРСКИ РАБОТИ",null,null,null,{"$f":"SUM(F37)","v":0}]
[3,"ФАСАДЕРСКИ РАБОТИ",null,null,null,{"$f":"SUM(F42)","v":0}]
[4,"РАЗНИ РАБОТИ",null,null,null,{"$f":"SUM(F52)","v":0}]
[]
[null,"СЕ ВКУПНО",null,null,null,{"$f":"SUM(F56:F59)","v":0}]

{"sheet":"43-80","index":21,"n_rows":48,"n_cols":6,"rows_kept":48,"cut":false,"hidden":false,"merged":[[0,1,0,4],[1,1,1,5],[5,2,5,5],[6,0,7,0],[8,0,9,0],[11,0,12,0],[17,0,18,0],[19,0,20,0],[21,0,22,0],[44,1,44,2]]}
[null,"ПРЕДМЕР - ПРЕСМЕТКА"]
[null,"Градежни и градежно занатски работи за инвестиционо тековно одржување со имплементација за мерки за енергетска ефикасностна  индивидуален станбен објект на ул. Тодор Чангов 37 бр. 6"]
["Ред. бр.","Опис на работа","Мера","Количина","Единечна цена","Вкупна цена"]
[1,2,3,4,5,6]
[1,"ПОДГОТВИТЕЛНИ РАБОТИ"]
[1.1000000000000001,"Внимателна демонтажа на дрвен прозор, застаклен со единечно стакло, комлет со окапница, потпрозорска даска, заедно со пренос и складирање на материјалот надвор од објектот или на локација предвидена од Надзорниот орган."]
["П1","Еднокрилен прозор"]
[null,"56/58","парче",1,null,{"$f":"D8*E8","v":0}]
["П2","Трокрилен прозор"]
[null,"190/145","парче",2,null,{"$f":"D10*E10","v":0}]
[1.2,"Внимателна демонтажа на влезна врата комплет со каса и праг заедно со пренос и складирање на материјалот надвор од објектот или на локација предвидена од Надзорниот орган."]
["В1","Двокрилна влезна врата"]
[null,"131/205","парче",1,null,{"$f":"D13*E13","v":0}]
[null,"Вкупно ПОДГОТВИТЕЛНИ РАБОТИ",null,null,null,{"$f":"SUM(F6:F13)","v":0}]
[]
[2," СТОЛАРСКИ РАБОТИ"]
[2.1,"Земање на мерки на лице место, изработка, транспорт и монтажа на фасадни ПВЦ прозори и врати, во бела боја RAL 9010 (Pure white), 5 коморни со средишен дихдунг, топлинска изолација за целиот прозорец  U≤1.8 W/m²K, надворешен слој од високо квалитетен премаз, звучна изолација  без челично армирање до Rwp=35 dB, застаклување сo термопан стакло 4+12+4,  заштита од провалување до класа на отпор 3, до класа на отпор 2 без челик, пропустливост на воздух 4 (EN 12207), заштита од поројни дождови 9А (ЕН 12208). Вратите да се со исполна од ПВЦ панел со д=2см. Производител и тип по избор на Инвеститорот \n(ѕидарска мерка)."]
["П1","Еднокрилен прозор"]
[null,"56/58","парче",1,null,{"$f":"D19*E19","v":0}]
["П2","Трокрилен прозор"]
[null,"190/145","парче",2,null,{"$f":"D21*E21","v":0}]
["В1","Двокрилна влезна врата (95+36)"]
[null,"131/205","парче",1,null,{"$f":"D23*E23","v":0}]
[null,"Вкупно СТОЛАРСКИ РАБОТИ: ",null,null,null,{"$f":"SUM(F18:F23)","v":0}]
[]
[3,"ФАСАДЕРСКИ  РАБОТИ"]
[3.1,"Изработка на шпалетна со декоративен минерален фасаден малтер и фасадна боја","m`",{"$f":"SUM(B28)","v":21.08},0,{"$f":"SUM(D27*E27)","v":0}]
[null,{"$f":"2*(0.56+0.58)+4*(1.9+1.45)+(2*2.05+1.3)","v":21.08}]
[null,"Вкупно ФАСАДЕРСКИ РАБОТИ: ",null,null,null,{"$f":"SUM(F27:F28)","v":0}]
[]
[4,"РАЗНИ РАБОТИ"]
[4.0999999999999996,"Изработка и местење на опшивка на прозорски окапник од поцинкуван пластифициран апкантован челичен лим д=0.55мм, во светло сива боја според RAL 9002 (Grey white),  РШ 30, поставени на метален флах за нивелирање на пад. ","m'",{"$f":"SUM(B33)","v":4.3599999999999994},0,{"$f":"D32*E32","v":0}]
[null,{"$f":"0.56+2*1.9","v":4.3599999999999994}]
[4.2,"Изработка и монтажа на внатрешен прозорски банак од ПВЦ, ш-15 см, во бела боја според RAL 9010 (pure white)","m'",{"$f":"SUM(B35)","v":3.8},0,0]
[null,{"$f":"2*1.9","v":3.8}]
[4.3,"Завршно глетување и молерисување на внатрешна шпалетна околу новопоставени  прозори и врати, заедно со метална аголна лајсна.","m'",{"$f":"SUM(B37)","v":21.08},0,0]
[null,{"$f":"2*(0.56+0.58)+4*(1.9+1.45)+(2*2.05+1.3)","v":21.08}]
[4.4000000000000004,"Изработка и монтажа на праг кај влезна врата, од мермер со д-3см, со обработени ивици, полиран, во бела боја, дим.130 см\nЗемање на мерка на лице место.","парче",1,0,{"$f":"D38*E38","v":0}]
[null,"Вкупно РАЗНИ РАБОТИ: ",null,null,null,{"$f":"SUM(F32:F38)","v":0}]
[]
[null,"Р Е К А П И Т У Л А Р"]
[]
[1,"ПОДГОТВИТЕЛНИ РАБОТИ",null,null,null,{"$f":"SUM(F14)","v":0}]
[2,"СТОЛАРСКИ РАБОТИ",null,null,null,{"$f":"SUM(F24)","v":0}]
[3,"ФАСАДЕРСКИ РАБОТИ",null,null,null,{"$f":"SUM(F29)","v":0}]
[4,"РАЗНИ РАБОТИ",null,null,null,{"$f":"SUM(F39)","v":0}]
[]
[null,"СЕ ВКУПНО",null,null,null,{"$f":"SUM(F43:F46)","v":0}]

{"sheet":"44-82","index":22,"n_rows":59,"n_cols":6,"rows_kept":59,"cut":false,"hidden":false,"merged":[[16,0,17,0],[23,0,24,0],[25,0,26,0],[6,0,7,0],[8,0,9,0],[10,0,11,0],[0,1,0,4],[1,1,1,5],[5,2,5,5],[12,0,13,0],[14,0,15,0],[27,0,28,0],[29,0,30,0],[31,0,32,0],[33,0,34,0],[55,1,55,2]]}
[null,"ПРЕДМЕР - ПРЕСМЕТКА"]
[null,"Градежни и градежно занатски работи за инвестиционо тековно одржување со имплементација за мерки за енергетска ефикасностна  индивидуален станбен објект на ул. Митре Влаот бр 5б"]
["Ред. бр.","Опис на работа","Мера","Количина","Единечна цена","Вкупна цена"]
[1,2,3,4,5,6]
[1,"ПОДГОТВИТЕЛНИ РАБОТИ"]
[1.1000000000000001,"Внимателна демонтажа на дрвен прозор, застаклен со единечно стакло, комлет со окапница, потпрозорска даска, заедно со пренос и складирање на материјалот надвор од објектот или на локација предвидена од Надзорниот орган."]
["П1","Еднокрилен прозор"]
[null,"70/97","парче",1,null,{"$f":"D8*E8","v":0}]
["П2","Еднокрилен прозор"]
[null,"82/65","парче",1,null,{"$f":"D10*E10","v":0}]
["П3","Двокрилен прозор (трапез)"]
[null,"160/135","парче",2,null,{"$f":"D12*E12","v":0}]
["П4","Двокрилен прозор"]
[null,"190/105","парче",1,null,{"$f":"D14*E14","v":0}]
["П5","Балконска врата"]
[null,"70/220","парче",1,null,{"$f":"D16*E16","v":0}]
["П6","Двокрилна балконска врата"]
[null,"160/210","парче",1,null,{"$f":"D18*E18","v":0}]
[1.2,"Внимателна демонтажа на ПВЦ ролетна со надворешна кутија заедно со пренос и складирање на материјалот надвор од објектот или на локација предвидена од Надзорниот орган. (за повторна монтажа)","парче",2,null,{"$f":"D19*E19","v":0}]
[null,"Вкупно ПОДГОТВИТЕЛНИ РАБОТИ",null,null,null,{"$f":"SUM(F6:F19)","v":0}]
[]
[2," СТОЛАРСКИ РАБОТИ"]
[2.1,"Земање на мерки на лице место, изработка, транспорт и монтажа на фасадни ПВЦ прозори и врати, во бела боја RAL 9010 (Pure white), 5 коморни со средишен дихдунг, топлинска изолација за целиот прозорец  U≤1.8 W/m²K, надворешен слој од високо квалитетен премаз, звучна изолација  без челично армирање до Rwp=35 dB, застаклување сo термопан стакло 4+12+4,  заштита од провалување до класа на отпор 3, до класа на отпор 2 без челик, пропустливост на воздух 4 (EN 12207), заштита од поројни дождови 9А (ЕН 12208). Производител и тип по избор на Инвеститорот. (ѕидарска мерка)."]
["П1","Еднокрилен прозор"]
[null,"70/97","парче",1,null,{"$f":"D25*E25","v":0}]
["П2","Еднокрилен прозор"]
[null,"82/65","парче",1,null,{"$f":"D27*E27","v":0}]
["П3","Двокрилен прозор (трапез)"]
[null,"160/135","парче",2,null,{"$f":"D29*E29","v":0}]
["П4","Двокрилен прозор"]
[null,"190/105","парче",1,null,{"$f":"D31*E31","v":0}]
["П5","Балконска врата"]
[null,"70/220","парче",1,null,{"$f":"D33*E33","v":0}]
["П6","Двокрилна балконска врата"]
[null,"160/210","парче",1,null,{"$f":"D35*E35","v":0}]
[null,"Вкупно СТОЛАРСКИ РАБОТИ: ",null,null,null,{"$f":"SUM(F24:F33)","v":0}]
[]
[3,"ФАСАДЕРСКИ  РАБОТИ"]
[3.1,"Изработка на шпалетна со декоративен минерален фасаден малтер и фасадна боја","m`",{"$f":"SUM(B40)","v":37.18},0,{"$f":"SUM(D39*E39)","v":0}]
[null,{"$f":"2*(0.7+0.97)+2*(0.82+0.65)+4*(1.6+1.35)+2*(1.9+1.05)+2*(0.7+2.2)+2*(1.6+2.1)","v":37.18}]
[null,"Вкупно ФАСАДЕРСКИ РАБОТИ: ",null,null,null,{"$f":"SUM(F39:F40)","v":0}]
[]
[4,"РАЗНИ РАБОТИ"]
[4.0999999999999996,"Изработка и местење на опшивка на прозорски окапник од поцинкуван пластифициран апкантован челичен лим д=0.55мм, во светло сива боја според RAL 9002 (Grey white),  РШ 30, поставени на метален флах за нивелирање на пад. ","m'",{"$f":"SUM(B45)","v":6.620000000000001},0,{"$f":"D44*E44","v":0}]
[null,{"$f":"0.7+0.82+2*1.6+1.9","v":6.620000000000001}]
[4.2,"Изработка и монтажа на внатрешен прозорски банак од ПВЦ, ш-15 см, во бела боја според RAL 9010 (pure white)","m'",{"$f":"SUM(B47)","v":5.8000000000000007},0,0]
[null,{"$f":"0.7+2*1.6+1.9","v":5.8000000000000007}]
[4.3,"Завршно глетување и молерисување на внатрешна шпалетна околу новопоставени  прозори и врати, заедно со метална аголна лајсна.","m'",{"$f":"SUM(B49)","v":37.18},0,0]
[null,{"$f":"2*(0.7+0.97)+2*(0.82+0.65)+4*(1.6+1.35)+2*(1.9+1.05)+2*(0.7+2.2)+2*(1.6+2.1)","v":37.18}]
[null,"Вкупно РАЗНИ РАБОТИ: ",null,null,null,{"$f":"SUM(F44:F49)","v":0}]
[]
[null,"Р Е К А П И Т У Л А Р"]
[]
[1,"ПОДГОТВИТЕЛНИ РАБОТИ",null,null,null,{"$f":"SUM(F20)","v":0}]
[2,"СТОЛАРСКИ РАБОТИ",null,null,null,{"$f":"SUM(F36)","v":0}]
[3,"ФАСАДЕРСКИ РАБОТИ",null,null,null,{"$f":"SUM(F41)","v":0}]
[4,"РАЗНИ РАБОТИ",null,null,null,{"$f":"SUM(F50)","v":0}]
[]
[null,"СЕ ВКУПНО",null,null,null,{"$f":"SUM(F54:F57)","v":0}]

{"sheet":"45-84","index":23,"n_rows":43,"n_cols":6,"rows_kept":43,"cut":false,"hidden":false,"merged":[[39,1,39,2],[0,1,0,4],[1,1,1,5],[5,2,5,5],[6,0,7,0],[8,0,9,0],[15,0,16,0],[17,0,18,0]]}
[null,"ПРЕДМЕР - ПРЕСМЕТКА"]
[null,"Градежни и градежно занатски работи за инвестиционо тековно одржување со имплементација за мерки за енергетска ефикасностна  индивидуален станбен објект на ул. Тодор Чангов 11 бр. 3"]
["Ред. бр.","Опис на работа","Мера","Количина","Единечна цена","Вкупна цена"]
[1,2,3,4,5,6]
[1,"ПОДГОТВИТЕЛНИ РАБОТИ"]
[1.1000000000000001,"Внимателна демонтажа на дрвен прозор, застаклен со единечно стакло, комлет со окапница, потпрозорска даска, заедно со пренос и складирање на материјалот надвор од објектот или на локација предвидена од Надзорниот орган."]
["П1","Трокрилен прозор"]
[null,"190/170","парче",1,null,{"$f":"D8*E8","v":0}]
["П2","Двокрилна балконска врата"]
[null,"135/215","парче",2,null,{"$f":"D10*E10","v":0}]
[1.2,"Внимателна демонтажа на ПВЦ ролетна со надворешна кутија заедно со пренос и складирање на материјалот надвор од објектот или на локација предвидена од Надзорниот орган. (за повторна монтажа)","парче",3,null,{"$f":"D11*E11","v":0}]
[null,"Вкупно ПОДГОТВИТЕЛНИ РАБОТИ",null,null,null,{"$f":"SUM(F6:F11)","v":0}]
[]
[2," СТОЛАРСКИ РАБОТИ"]
[2.1,"Земање на мерки на лице место, изработка, транспорт и монтажа на фасадни ПВЦ прозори и врати, во бела боја RAL 9010 (Pure white), 5 коморни со средишен дихдунг, топлинска изолација за целиот прозорец  U≤1.8 W/m²K, надворешен слој од високо квалитетен премаз, звучна изолација  без челично армирање до Rwp=35 dB, застаклување сo термопан стакло 4+12+4,  заштита од провалување до класа на отпор 3, до класа на отпор 2 без челик, пропустливост на воздух 4 (EN 12207), заштита од поројни дождови 9А (ЕН 12208). \n(ѕидарска мерка)."]
["П1","Двокрилен прозор"]
[null,"190/170","парче",1,null,{"$f":"D17*E17","v":0}]
["П2","Двокрилна балконска врата"]
[null,"135/215","парче",2,null,{"$f":"D19*E19","v":0}]
[null,"Вкупно СТОЛАРСКИ РАБОТИ: ",null,null,null,{"$f":"SUM(F16:F19)","v":0}]
[]
[3,"ФАСАДЕРСКИ  РАБОТИ"]
[3.1,"Изработка на шпалетна со декоративен минерален фасаден малтер и фасадна боја","m`",{"$f":"SUM(B24)","v":21.2},0,{"$f":"SUM(D23*E23)","v":0}]
[null,{"$f":"2*(1.9+1.7)+4*(1.35+2.15)","v":21.2}]
[null,"Вкупно ФАСАДЕРСКИ РАБОТИ: ",null,null,null,{"$f":"SUM(F23:F24)","v":0}]
[]
[4,"РАЗНИ РАБОТИ"]
[4.0999999999999996,"Изработка и местење на опшивка на прозорски окапник од поцинкуван пластифициран апкантован челичен лим д=0.55мм, во светло сива боја според RAL 9002 (Grey white),  РШ 30, поставени на метален флах за нивелирање на пад. ","m'",{"$f":"SUM(B29)","v":4.5999999999999996},0,{"$f":"D28*E28","v":0}]
[null,{"$f":"1.9+2*1.35","v":4.5999999999999996}]
[4.2,"Изработка и монтажа на внатрешен прозорски банак од ПВЦ, ш-15 см, во бела боја според RAL 9010 (pure white)","m'",{"$f":"SUM(B31)","v":1.9},0,0]
[null,1.9]
[4.3,"Завршно глетување и молерисување на внатрешна шпалетна околу новопоставени  прозори и врати, заедно со метална аголна лајсна.","m'",{"$f":"SUM(B33)","v":21.2},0,0]
[null,{"$f":"2*(1.9+1.7)+4*(1.35+2.15)","v":21.2}]
[null,"Вкупно РАЗНИ РАБОТИ: ",null,null,null,{"$f":"SUM(F28:F33)","v":0}]
[]
[null,"Р Е К А П И Т У Л А Р"]
[]
[1,"ПОДГОТВИТЕЛНИ РАБОТИ",null,null,null,{"$f":"SUM(F12)","v":0}]
[2,"СТОЛАРСКИ РАБОТИ",null,null,null,{"$f":"SUM(F20)","v":0}]
[3,"ФАСАДЕРСКИ РАБОТИ",null,null,null,{"$f":"SUM(F25)","v":0}]
[4,"РАЗНИ РАБОТИ",null,null,null,{"$f":"SUM(F34)","v":0}]
[]
[null,"СЕ ВКУПНО",null,null,null,{"$f":"SUM(F38:F41)","v":0}]

{"sheet":"46-85","index":24,"n_rows":35,"n_cols":6,"rows_kept":35,"cut":false,"hidden":false,"merged":[[0,1,0,4],[1,1,1,5],[6,0,7,0],[12,0,13,0],[31,1,31,2]]}
[null,"ПРЕДМЕР - ПРЕСМЕТКА"]
[null,"Градежни и градежно занатски работи за инвестиционо тековно одржување со имплементација за мерки за енергетска ефикасностна  индивидуален станбен објект на ул. Буковиќ бр. 2б"]
["Ред. бр.","Опис на работа","Мера","Количина","Единечна цена","Вкупна цена"]
[1,2,3,4,5,6]
[1,"ПОДГОТВИТЕЛНИ РАБОТИ"]
[1.2,"Внимателна демонтажа на влезна врата комплет со каса и праг заедно со пренос и складирање на материјалот надвор од објектот или на локација предвидена од Надзорниот орган."]
["В1","Еднокрилна влезна врата"]
[null,"91/205","парче",1,null,{"$f":"D8*E8","v":0}]
[null,"Вкупно ПОДГОТВИТЕЛНИ РАБОТИ",null,null,null,{"$f":"SUM(F6:F8)","v":0}]
[]
[2," СТОЛАРСКИ РАБОТИ"]
[2.2000000000000002,"Земање на мерки на лице место, изработка, транспорт и монтажа на фасадна ПВЦ влезна врата, во бела боја RAL 9010 (Pure white), 5 коморни со средишен дихдунг, топлинска изолација за целата врата  U≤1.8 W/m²K, надворешен слој од високо квалитетен премаз, звучна изолација  без челично армирање до Rwp=35 dB, застаклување сo термопан стакло 4+12+4,  заштита од провалување до класа на отпор 3, до класа на отпор 2 без челик, пропустливост на воздух 4 (EN 12207), заштита од поројни дождови 9А (ЕН 12208). Вратите да се со исполна од ПВЦ панел со д=2см. Производител и тип по избор на Инвеститорот \n(ѕидарска мерка)."]
["В1","Еднокрилна влезна врата, со квака и патент брава"]
[null,"91/205","парче",1,null,{"$f":"D14*E14","v":0}]
[null,"Вкупно СТОЛАРСКИ РАБОТИ: ",null,null,null,{"$f":"SUM(F12:F14)","v":0}]
[]
[3,"ФАСАДЕРСКИ  РАБОТИ"]
[3.1,"Изработка на шпалетна со декоративен минерален фасаден малтер и фасадна боја","m`",{"$f":"SUM(B19)","v":5},0,{"$f":"SUM(D18*E18)","v":0}]
[null,{"$f":"2*2.05+0.9","v":5}]
[null,"Вкупно ФАСАДЕРСКИ РАБОТИ: ",null,null,null,{"$f":"SUM(F18:F19)","v":0}]
[]
[4,"РАЗНИ РАБОТИ"]
[4.0999999999999996,"Завршно глетување и молерисување на внатрешна шпалетна околу новопоставени  прозори и врати, заедно со метална аголна лајсна.","m'",{"$f":"SUM(B24)","v":5},0,{"$f":"D23*E23","v":0}]
[null,{"$f":"2*2.05+0.9","v":5}]
[4.2,"Изработка и монтажа на праг кај влезна врата, од мермер со д-3см, со обработени ивици, полиран, во бела боја, дим.95 см\nЗемање на мерка на лице место.","парче",1,0,{"$f":"D25*E25","v":0}]
[null,"Вкупно РАЗНИ РАБОТИ: ",null,null,null,{"$f":"SUM(F23:F25)","v":0}]
[]
[null,"Р Е К А П И Т У Л А Р"]
[]
[1,"ПОДГОТВИТЕЛНИ РАБОТИ",null,null,null,{"$f":"SUM(F9)","v":0}]
[2,"СТОЛАРСКИ РАБОТИ",null,null,null,{"$f":"SUM(F15)","v":0}]
[3,"ФАСАДЕРСКИ РАБОТИ",null,null,null,{"$f":"SUM(F20)","v":0}]
[4,"РАЗНИ РАБОТИ",null,null,null,{"$f":"SUM(F26)","v":0}]
[]
[null,"СЕ ВКУПНО",null,null,null,{"$f":"SUM(F30:F33)","v":0}]

{"sheet":"47-87","index":25,"n_rows":56,"n_cols":6,"rows_kept":56,"cut":false,"hidden":false,"merged":[[52,1,52,2],[0,1,0,4],[1,1,1,5],[5,2,5,5],[6,0,7,0],[8,0,9,0],[10,0,11,0],[12,0,13,0],[21,0,22,0],[23,0,24,0],[15,0,16,0],[25,0,26,0],[27,0,28,0],[29,0,30,0]]}
[null,"ПРЕДМЕР - ПРЕСМЕТКА"]
[null,"Градежни и градежно занатски работи за инвестиционо тековно одржување со имплементација за мерки за енергетска ефикасностна  индивидуален станбен објект на ул. Мите Богоевски 8 бр. 11"]
["Ред. бр.","Опис на работа","Мера","Количина","Единечна цена","Вкупна цена"]
[1,2,3,4,5,6]
[1,"ПОДГОТВИТЕЛНИ РАБОТИ"]
[1.1000000000000001,"Внимателна демонтажа на дрвен прозор, застаклен со единечно стакло, комлет со окапница, потпрозорска даска, заедно со пренос и складирање на материјалот надвор од објектот или на локација предвидена од Надзорниот орган."]
["П1","Еднокрилен прозор"]
[null,"60/60","парче",1,null,{"$f":"D8*E8","v":0}]
["П2","Двокрилен прозор"]
[null,"117/140","парче",1,null,{"$f":"D10*E10","v":0}]
["П3","Трокрилен прозор"]
[null,"178/140","парче",3,null,{"$f":"D12*E12","v":0}]
["П4","Четирикрилен прозор"]
[null,"235/135","парче",1,null,{"$f":"D14*E14","v":0}]
[1.2,"Внимателна демонтажа на влезна врата комплет со каса и праг заедно со пренос и складирање на материјалот надвор од објектот или на локација предвидена од Надзорниот орган."]
["В1","Еднокрилна влезна врата"]
[null,"110/210","парче",1,null,{"$f":"D17*E17","v":0}]
[null,"Вкупно ПОДГОТВИТЕЛНИ РАБОТИ",null,null,null,{"$f":"SUM(F6:F17)","v":0}]
[]
[2," СТОЛАРСКИ РАБОТИ"]
[2.1,"Земање на мерки на лице место, изработка, транспорт и монтажа на фасадни ПВЦ прозори и врати, во бела боја RAL 9010 (Pure white), 5 коморни со средишен дихдунг, топлинска изолација за целиот прозорец  U≤1.8 W/m²K, надворешен слој од високо квалитетен премаз, звучна изолација  без челично армирање до Rwp=35 dB, застаклување сo термопан стакло 4+12+4,  заштита од провалување до класа на отпор 3, до класа на отпор 2 без челик, пропустливост на воздух 4 (EN 12207), заштита од поројни дождови 9А (ЕН 12208). Вратите да се со исполна од ПВЦ панел со д=2см. Производител и тип по избор на Инвеститорот \n(ѕидарска мерка)."]
["П1","Еднокрилен прозор"]
[null,"60/60","парче",1,null,{"$f":"D23*E23","v":0}]
["П2","Двокрилен прозор"]
[null,"117/140","парче",1,null,{"$f":"D25*E25","v":0}]
["П3","Двокрилен прозор"]
[null,"178/140","парче",3,null,{"$f":"D27*E27","v":0}]
["П4","Четирикрилен прозор"]
[null,"235/135","парче",1,null,{"$f":"D29*E29","v":0}]
["В1","Еднокрилна влезна врата, со квака и патент брава"]
[null,"110/210","парче",1,null,{"$f":"D31*E31","v":0}]
[null,"Вкупно СТОЛАРСКИ РАБОТИ: ",null,null,null,{"$f":"SUM(F22:F31)","v":0}]
[]
[3,"ФАСАДЕРСКИ  РАБОТИ"]
[3.1,"Изработка на шпалетна со декоративен минерален фасаден малтер и фасадна боја","m`",{"$f":"SUM(B36)","v":39.319999999999993},0,{"$f":"SUM(D35*E35)","v":0}]
[null,{"$f":"(2*(0.6+0.6)+2*(1.17+1.4)+6*(1.78+1.4)+2*(2.35+1.35)+(2*2.1+1.1))","v":39.319999999999993}]
[null,"Вкупно ФАСАДЕРСКИ РАБОТИ: ",null,null,null,{"$f":"SUM(F35:F36)","v":0}]
[]
[4,"РАЗНИ РАБОТИ"]
[4.0999999999999996,"Изработка и местење на опшивка на прозорски окапник од поцинкуван пластифициран апкантован челичен лим д=0.55мм, во светло сива боја според RAL 9002 (Grey white),  РШ 30, поставени на метален флах за нивелирање на пад. ","m'",{"$f":"SUM(B41)","v":9.5500000000000007},0,{"$f":"D40*E40","v":0}]
[null,{"$f":"0.6+1.2+3*1.8+2.35","v":9.5500000000000007}]
[4.2,"Изработка и монтажа на внатрешен прозорски банак од ПВЦ, ш-15 см, во бела боја според RAL 9010 (pure white)","m'",{"$f":"SUM(B43)","v":8.9500000000000011},0,0]
[null,{"$f":"1.2+3*1.8+2.35","v":8.9500000000000011}]
[4.3,"Завршно глетување и молерисување на внатрешна шпалетна околу новопоставени  прозори и врати, заедно со метална аголна лајсна.","m'",{"$f":"SUM(B45)","v":36.92},0,0]
[null,{"$f":"(2*(1.17+1.4)+6*(1.78+1.4)+2*(2.35+1.35)+(2*2.1+1.1))","v":36.92}]
[4.4000000000000004,"Изработка и монтажа на праг кај влезна врата, од мермер со д-3см, со обработени ивици, полиран, во бела боја, дим.100 см\nЗемање на мерка на лице место.","парче",1,0,{"$f":"D46*E46","v":0}]
[null,"Вкупно РАЗНИ РАБОТИ: ",null,null,null,{"$f":"SUM(F40:F46)","v":0}]
[]
[null,"Р Е К А П И Т У Л А Р"]
[]
[1,"ПОДГОТВИТЕЛНИ РАБОТИ",null,null,null,{"$f":"SUM(F18)","v":0}]
[2,"СТОЛАРСКИ РАБОТИ",null,null,null,{"$f":"SUM(F32)","v":0}]
[3,"ФАСАДЕРСКИ РАБОТИ",null,null,null,{"$f":"SUM(F37)","v":0}]
[4,"РАЗНИ РАБОТИ",null,null,null,{"$f":"SUM(F47)","v":0}]
[]
[null,"СЕ ВКУПНО",null,null,null,{"$f":"SUM(F51:F54)","v":0}]

{"sheet":"48-88","index":26,"n_rows":50,"n_cols":6,"rows_kept":50,"cut":false,"hidden":false,"merged":[[0,1,0,4],[1,1,1,5],[5,2,5,5],[22,0,23,0],[24,0,25,0],[46,1,46,2],[6,0,7,0],[8,0,9,0],[10,0,11,0],[12,0,13,0],[18,0,19,0],[20,0,21,0]]}
[null,"ПРЕДМЕР - ПРЕСМЕТКА"]
[null,"Градежни и градежно занатски работи за инвестиционо тековно одржување со имплементација за мерки за енергетска ефикасностна  индивидуален станбен објект на ул. Ѓорѓи Капчев 13 бр. 10"]
["Ред. бр.","Опис на работа","Мера","Количина","Единечна цена","Вкупна цена"]
[1,2,3,4,5,6]
[1,"ПОДГОТВИТЕЛНИ РАБОТИ"]
[1.1000000000000001,"Внимателна демонтажа на дрвен прозор, застаклен со единечно стакло, комлет со окапница, потпрозорска даска, заедно со пренос и складирање на материјалот надвор од објектот или на локација предвидена од Надзорниот орган."]
["П1","Еднокрилен прозор"]
[null,"35/40","парче",1,null,{"$f":"D8*E8","v":0}]
["П2","Еднокрилен прозор"]
[null,"85/115","парче",1,null,{"$f":"D10*E10","v":0}]
["П3","Двокрилен прозор"]
[null,"220/80","парче",1,null,{"$f":"D12*E12","v":0}]
["П4","Трокрилен прозор"]
[null,"350/95","парче",1,null,{"$f":"D14*E14","v":0}]
[null,"Вкупно ПОДГОТВИТЕЛНИ РАБОТИ",null,null,null,{"$f":"SUM(F6:F14)","v":0}]
[]
[2," СТОЛАРСКИ РАБОТИ"]
[2.1,"Земање на мерки на лице место, изработка, транспорт и монтажа на фасадни ПВЦ прозори и врати, во бела боја RAL 9010 (Pure white), 5 коморни со средишен дихдунг, топлинска изолација за целиот прозорец  U≤1.8 W/m²K, надворешен слој од високо квалитетен премаз, звучна изолација  без челично армирање до Rwp=35 dB, застаклување сo термопан стакло 4+12+4,  заштита од провалување до класа на отпор 3, до класа на отпор 2 без челик, пропустливост на воздух 4 (EN 12207), заштита од поројни дождови 9А (ЕН 12208). Производител и тип по избор на Инвеститорот. (ѕидарска мерка)."]
["П1","Еднокрилен прозор"]
[null,"35/40","парче",1,null,{"$f":"D20*E20","v":0}]
["П2","Еднокрилен прозор"]
[null,"85/115","парче",1,null,{"$f":"D22*E22","v":0}]
["П3","Трокрилен прозор"]
[null,"220/80","парче",1,null,{"$f":"D24*E24","v":0}]
["П4","Четирикрилен прозор"]
[null,"350/95","парче",1,null,{"$f":"D26*E26","v":0}]
[null,"Вкупно СТОЛАРСКИ РАБОТИ: ",null,null,null,{"$f":"SUM(F19:F26)","v":0}]
[]
[3,"ФАСАДЕРСКИ  РАБОТИ"]
[3.1,"Изработка на шпалетна со декоративен минерален фасаден малтер и фасадна боја","m`",{"$f":"SUM(B31)","v":20.399999999999999},0,{"$f":"SUM(D30*E30)","v":0}]
[null,{"$f":"2*(0.35+0.4)+2*(0.85+1.15)+2*(2.2+0.8)+2*(3.5+0.95)","v":20.399999999999999}]
[null,"Вкупно ФАСАДЕРСКИ РАБОТИ: ",null,null,null,{"$f":"SUM(F30:F31)","v":0}]
[]
[4,"РАЗНИ РАБОТИ"]
[4.0999999999999996,"Изработка и местење на опшивка на прозорски окапник од поцинкуван пластифициран апкантован челичен лим д=0.55мм, во светло сива боја според RAL 9002 (Grey white),  РШ 30, поставени на метален флах за нивелирање на пад. ","m'",{"$f":"SUM(B36)","v":6.9},0,{"$f":"D35*E35","v":0}]
[null,{"$f":"0.35+0.85+2.2+3.5","v":6.9}]
[4.2,"Изработка и монтажа на внатрешен прозорски банак од ПВЦ, ш-15 см, во бела боја според RAL 9010 (pure white)","m'",{"$f":"SUM(B38)","v":6.9},0,0]
[null,{"$f":"0.35+0.85+2.2+3.5","v":6.9}]
[4.3,"Завршно глетување и молерисување на внатрешна шпалетна околу новопоставени  прозори и врати, заедно со метална аголна лајсна.","m'",{"$f":"SUM(B40)","v":20.399999999999999},0,0]
[null,{"$f":"2*(0.35+0.4)+2*(0.85+1.15)+2*(2.2+0.8)+2*(3.5+0.95)","v":20.399999999999999}]
[null,"Вкупно РАЗНИ РАБОТИ: ",null,null,null,{"$f":"SUM(F35:F40)","v":0}]
[]
[null,"Р Е К А П И Т У Л А Р"]
[]
[1,"ПОДГОТВИТЕЛНИ РАБОТИ",null,null,null,{"$f":"SUM(F15)","v":0}]
[2,"СТОЛАРСКИ РАБОТИ",null,null,null,{"$f":"SUM(F27)","v":0}]
[3,"ФАСАДЕРСКИ РАБОТИ",null,null,null,{"$f":"SUM(F32)","v":0}]
[4,"РАЗНИ РАБОТИ",null,null,null,{"$f":"SUM(F41)","v":0}]
[]
[null,"СЕ ВКУПНО",null,null,null,{"$f":"SUM(F45:F48)","v":0}]

{"sheet":"49-89","index":27,"n_rows":85,"n_cols":6,"rows_kept":85,"cut":false,"hidden":false,"merged":[[36,0,37,0],[0,1,0,4],[1,1,1,5],[5,2,5,5],[12,0,13,0],[14,0,15,0],[16,0,17,0],[18,0,19,0],[20,0,21,0],[22,0,23,0],[6,0,7,0],[8,0,9,0],[10,0,11,0],[24,0,25,0],[26,0,27,0],[29,0,30,0],[81,1,81,2],[38,0,39,0],[40,0,41,0],[42,0,43,0],[44,0,45,0],[46,0,47,0],[48,0,49,0],[50,0,51,0],[52,0,53,0],[54,0,55,0],[56,0,57,0],[58,0,59,0]]}
[null,"ПРЕДМЕР - ПРЕСМЕТКА"]
[null,"Градежни и градежно занатски работи за инвестиционо тековно одржување со имплементација за мерки за енергетска ефикасностна  индивидуален станбен објект на ул. Лисец бр. 73"]
["Ред. бр.","Опис на работа","Мера","Количина","Единечна цена","Вкупна цена"]
[1,2,3,4,5,6]
[1,"ПОДГОТВИТЕЛНИ РАБОТИ"]
[1.1000000000000001,"Внимателна демонтажа на дрвен прозор, застаклен со единечно стакло, комлет со окапница, потпрозорска даска, заедно со пренос и складирање на материјалот надвор од објектот или на локација предвидена од Надзорниот орган."]
["П1","Еднокрилен прозор"]
[null,"60/60","парче",2,null,{"$f":"D8*E8","v":0}]
["П2","Еднокрилен прозор"]
[null,"80/120","парче",2,null,{"$f":"D10*E10","v":0}]
["П3","Еднокрилен прозор"]
[null,"95/120","парче",1,null,{"$f":"D12*E12","v":0}]
["П4","Еднокрилен прозор"]
[null,"100/140","парче",1,null,{"$f":"D14*E14","v":0}]
["П4.1","Еднокрилен прозор (фиксен)"]
[null,"100/140","парче",1,null,{"$f":"D16*E16","v":0}]
["П5","Еднокрилен прозор"]
[null,"100/115","парче",1,null,{"$f":"D18*E18","v":0}]
["П6","Еднокрилен прозор"]
[null,"110/72","парче",1,null,{"$f":"D20*E20","v":0}]
["П7","Еднокрилен прозор"]
[null,"120/115","парче",1,null,{"$f":"D22*E22","v":0}]
["П9","Двокрилен прозор"]
[null,"180/120","парче",1,null,{"$f":"D24*E24","v":0}]
["П10","Еднокрилна балконска врата"]
[null,"80/210","парче",2,null,{"$f":"D26*E26","v":0}]
["П11","Еднокрилен прозор со еднокрилна балконска врата"]
[null,"100/115 + 80/205","парче",1,null,{"$f":"D28*E28","v":0}]
[1.2,"Внимателна демонтажа на влезна врата комплет со каса и праг заедно со пренос и складирање на материјалот надвор од објектот или на локација предвидена од Надзорниот орган."]
["В2","Двокрилна влезна врата"]
[null,"150/205","парче",2,null,{"$f":"D31*E31","v":0}]
[1.3,"Внимателна демонтажа на ПВЦ ролетна со надворешна кутија заедно со пренос и складирање на материјалот надвор од објектот или на локација предвидена од Надзорниот орган. (за повторна монтажа)","парче",3,null,{"$f":"D32*E32","v":0}]
[null,"Вкупно ПОДГОТВИТЕЛНИ РАБОТИ",null,null,null,{"$f":"SUM(F6:F32)","v":0}]
[]
[2," СТОЛАРСКИ РАБОТИ"]
[2.1,"Земање на мерки на лице место, изработка, транспорт и монтажа на фасадни ПВЦ прозори и врати, во бела боја RAL 9010 (Pure white), 5 коморни со средишен дихдунг, топлинска изолација за целиот прозорец  U≤1.8 W/m²K, надворешен слој од високо квалитетен премаз, звучна изолација  без челично армирање до Rwp=35 dB, застаклување сo термопан стакло 4+12+4,  заштита од провалување до класа на отпор 3, до класа на отпор 2 без челик, пропустливост на воздух 4 (EN 12207), заштита од поројни дождови 9А (ЕН 12208). Вратите да се со исполна од ПВЦ панел со д=2см. Производител и тип по избор на Инвеститорот \n(ѕидарска мерка)."]
["П1","Еднокрилен прозор"]
[null,"60/60","парче",2,null,{"$f":"D38*E38","v":0}]
["П2","Еднокрилен прозор"]
[null,"80/120","парче",2,null,{"$f":"D40*E40","v":0}]
["П3","Еднокрилен прозор"]
[null,"95/120","парче",1,null,{"$f":"D42*E42","v":0}]
["П4","Еднокрилен прозор"]
[null,"100/140","парче",1,null,{"$f":"D44*E44","v":0}]
["П4.1","Еднокрилен прозор (фиксен)"]
[null,"100/140","парче",1,null,{"$f":"D46*E46","v":0}]
["П5","Еднокрилен прозор"]
[null,"100/115","парче",1,null,{"$f":"D48*E48","v":0}]
["П6","Еднокрилен прозор"]
[null,"110/72","парче",1,null,{"$f":"D50*E50","v":0}]
["П7","Еднокрилен прозор"]
[null,"120/115","парче",1,null,{"$f":"D52*E52","v":0}]
["П9","Двокрилен прозор"]
[null,"180/120","парче",1,null,{"$f":"D54*E54","v":0}]
["П10","Еднокрилна балконска врата"]
[null,"80/210","парче",2,null,{"$f":"D56*E56","v":0}]
["П11","Еднокрилен прозор со еднокрилна балконска врата"]
[null,"100/115 + 80/205","парче",1,null,{"$f":"D58*E58","v":0}]
["В2","Двокрилна влезна врата (95+55), со квака и патент брава"]
[null,"150/205","парче",2,null,{"$f":"D60*E60","v":0}]
[null,"Вкупно СТОЛАРСКИ РАБОТИ: ",null,null,null,{"$f":"SUM(F37:F60)","v":0}]
[]
[3,"ФАСАДЕРСКИ  РАБОТИ"]
[3.1,"Изработка на шпалетна со декоративен минерален фасаден малтер и фасадна боја","m`",{"$f":"SUM(B65)","v":74.440000000000012},0,{"$f":"SUM(D64*E64)","v":0}]
[null,{"$f":"4*(0.6+0.6)+4*(0.8+1.2)+2*(0.95+1.2)+4*(1+1.4)+2*(1.1+0.72)+2*(1.2+1.15)+2*(1.25+0.2)+2*(1.8+1.2)+4*(0.8+2.1)+2*(1.8+2.05)+2*(2*2.05+1.5)","v":74.440000000000012}]
[null,"Вкупно ФАСАДЕРСКИ РАБОТИ: ",null,null,null,{"$f":"SUM(F64:F65)","v":0}]
[]
[4,"РАЗНИ РАБОТИ"]
[4.0999999999999996,"Изработка и местење на опшивка на прозорски окапник од поцинкуван пластифициран апкантован челичен лим д=0.55мм, во светло сива боја според RAL 9002 (Grey white),  РШ 30, поставени на метален флах за нивелирање на пад. ","m'",{"$f":"SUM(B70)","v":13.1},0,{"$f":"D69*E69","v":0}]
[null,{"$f":"2*0.6+2*0.8+0.95+3*1+1.1+1.2+1.25+1.8+1","v":13.1}]
[4.2,"Изработка и монтажа на внатрешен прозорски банак од ПВЦ, ш-15 см, во бела боја според RAL 9010 (pure white)","m'",{"$f":"SUM(B72)","v":13.1},0,0]
[null,{"$f":"2*0.6+2*0.8+0.95+3*1+1.1+1.2+1.25+1.8+1","v":13.1}]
[4.3,"Завршно глетување и молерисување на внатрешна шпалетна околу новопоставени  прозори и врати, заедно со метална аголна лајсна.","m'",{"$f":"SUM(B74)","v":74.440000000000012},0,0]
[null,{"$f":"4*(0.6+0.6)+4*(0.8+1.2)+2*(0.95+1.2)+4*(1+1.4)+2*(1.1+0.72)+2*(1.2+1.15)+2*(1.25+0.2)+2*(1.8+1.2)+4*(0.8+2.1)+2*(1.8+2.05)+2*(2*2.05+1.5)","v":74.440000000000012}]
[4.4000000000000004,"Изработка и монтажа на праг кај влезна врата, од мермер со д-3см, со обработени ивици, полиран, во бела боја, дим. 2 х 150см. Земање на мерка на лице место.","парче",2,0,{"$f":"D75*E75","v":0}]
[null,"Вкупно РАЗНИ РАБОТИ: ",null,null,null,{"$f":"SUM(F69:F75)","v":0}]
[]
[null,"Р Е К А П И Т У Л А Р"]
[]
[1,"ПОДГОТВИТЕЛНИ РАБОТИ",null,null,null,{"$f":"SUM(F33)","v":0}]
[2,"СТОЛАРСКИ РАБОТИ",null,null,null,{"$f":"SUM(F61)","v":0}]
[3,"ФАСАДЕРСКИ РАБОТИ",null,null,null,{"$f":"SUM(F66)","v":0}]
[4,"РАЗНИ РАБОТИ",null,null,null,{"$f":"SUM(F76)","v":0}]
[]
[null,"СЕ ВКУПНО",null,null,null,{"$f":"SUM(F80:F83)","v":0}]

{"sheet":"Part 2 - 48","index":28,"n_rows":24,"n_cols":6,"rows_kept":24,"cut":false,"hidden":false,"merged":[[0,2,0,5]]}
[null,"Објект:  Индивидуален станбен објект -Апликација бр. 48;  ул.Тодор Чангов  бр.1/8, Скопје "]
["Ред. бр.","Опис на работа","Мера","Количина","Единечна цена","Вкупна цена"]
[1,2,3,4,5,6]
[1,"ПОДГОТВИТЕЛНИ РАБОТИ"]
[1.1000000000000001,"Внимателна демонтажа на влезна врата 107/201 см, комплет со каса , заедно со пренос и складирање на материјалот надвор од објектот или на локација предвидена од Надзорниот орган.","парче",1,null,{"$f":"SUM(D5*E5)","v":0}]
[null,"Вкупно ПОДГОТВИТЕЛНИ РАБОТИ",null,null,null,{"$f":"SUM(F5:F5)","v":0}]
[]
[2," СТОЛАРСКИ РАБОТИ"]
[2.1,"Земање на мерки на лице место, изработка, транспорт и монтажа на фасадна ПВЦ врата, во бела боја RAL 9010 (Pure white), 5 коморни со средишен дихдунг, топлинска изолација за целата врата  U≤1.8 W/m²K, надворешен слој од високо квалитетен премаз, исполна од ПВЦ панел со д=2см звучна изолација  без челично армирање до Rwp=35 dB,,  заштита од провалување до класа на отпор 3, до класа на отпор 2 без челик, пропустливост на воздух 4 (EN 12207), заштита од поројни дождови 9А (ЕН 12208). Производител и тип по избор на Инвеститорот \n(ѕидарска мерка)."]
["В1","107/201","парче",1,null,{"$f":"SUM(D10*E10)","v":0}]
[null,"Вкупно СТОЛАРСКИ РАБОТИ: ",null,null,null,{"$f":"SUM(F10:F10)","v":0}]
[]
[3,"РАЗНИ РАБОТИ"]
[3.1,"Завршно глетување и молерисување на надворешна и внатрешна шпалетна околу новопоставена врата.","m'",5.09,0,{"$f":"SUM(D14*E14)","v":0}]
[null,"2,01+1,07+2,01"]
[null,"Вкупно РАЗНИ РАБОТИ: ",null,null,null,{"$f":"SUM(F14:F15)","v":0}]
[]
[null,"Р Е К А П И Т У Л А Р"]
[]
[1,"ПОДГОТВИТЕЛНИ РАБОТИ",null,null,null,{"$f":"SUM(F6)","v":0}]
[2,"СТОЛАРСКИ РАБОТИ",null,null,null,{"$f":"SUM(F11)","v":0}]
[3,"РАЗНИ РАБОТИ",null,null,null,{"$f":"SUM(F16)","v":0}]
[]
[null,"СЕ ВКУПНО",null,null,null,{"$f":"SUM(F20:F22)","v":0}]

{"sheet":"РЕКАПИТУЛАР ЛОТ-2","index":29,"n_rows":29,"n_cols":3,"rows_kept":29,"cut":false,"hidden":false,"merged":[[0,1,0,2]]}
[null,"РЕКАПИТУЛАР ЛОТ -2"]
[]
[null,"Куќа 13-33",{"$f":"'13-33'!F77","v":0}]
[null,"Куќа 14-34",{"$f":"'14-34'!F93","v":0}]
[null,"Куќа 28-51",{"$f":"'28-51'!F49","v":0}]
[null,"Куќа 29-52",{"$f":"'29-52'!F61","v":0}]
[null,"Куќа 30-53",{"$f":"'30-53'!F56","v":0}]
[null,"Куќа 31-54",{"$f":"'31-54'!F57","v":0}]
[null,"Куќа 32-56",{"$f":"'32-56'!F35","v":0}]
[null,"Куќа 33-60",{"$f":"'33-60'!F35","v":0}]
[null,"Куќа 34-64",{"$f":"'34-64'!F48","v":0}]
[null,"Куќа 35-66",{"$f":"'35-66'!F35","v":0}]
[null,"Куќа 36-67",{"$f":"'36-67'!F65","v":0}]
[null,"Куќа 37-68",{"$f":"'37-68'!F63","v":0}]
[null,"Куќа 38-69",{"$f":"'38-69'!F61","v":0}]
[null,"Куќа 39-76",{"$f":"'39-76'!F57","v":0}]
[null,"Куќа 40-77",{"$f":"'40-77'!F59","v":0}]
[null,"Куќа 41-78",{"$f":"'41-78'!F61","v":0}]
[null,"Куќа 42-79",{"$f":"'42-79'!F61","v":0}]
[null,"Куќа 43-80",{"$f":"'43-80'!F48","v":0}]
[null,"Куќа 44-82",{"$f":"'44-82'!F59","v":0}]
[null,"Куќа 45-84",{"$f":"'45-84'!F43","v":0}]
[null,"Куќа 46-85",{"$f":"'46-85'!F35","v":0}]
[null,"Куќа 47-87",{"$f":"'47-87'!F56","v":0}]
[null,"Куќа 48-88",{"$f":"'48-88'!F50","v":0}]
[null,"Куќа 49-89",{"$f":"'49-89'!F85","v":0}]
[null,"Куќа Part 2 - 48",{"$f":"'Part 2 - 48'!F24","v":0}]
[]
[null,"СЕ ВКУПНО ЛОТ 2",{"$f":"SUM(C3:C27)","v":0}]